Workbook

Sheet Y7 Roll-Over Funds Request
A1: Hobson UAK DHS Y7 Carry-forward/Roll Over Request
A3: TOTAL | C3: =D129 -> 156355.3698 | E3: =F129 -> 0 | G3: =H129 -> 0 | I3: =J129 -> 0 | K3: =L129 -> 0 | M3: =M129 -> 156355.3698
A4: SALARY/WAGES | C4: 1 | D4: Y1 | E4: =IF($C$4=1, "HOURS", "MONTHS") -> HOURS | F4: Y2 | G4: =IF($C$4=1, "HOURS", "MONTHS") -> HOURS | H4: Y3 | I4: =IF($C$4=1, "HOURS", "MONTHS") -> HOURS | J4: Y4 | K4: =IF($C$4=1, "HOURS", "MONTHS") -> HOURS | L4: Y5 | M4: Total
A6: ='Salary Worksheet'!B13 -> Hobson | C6: 231.21 | D6: =IF($C$4=1,ROUND('Salary Worksheet'!D13*C6,2), ROUND('Salary Worksheet'!D4/12*C6,2)) -> 20662.11 | E6: 0 | F6: =IF($C$4=1,ROUND('Salary Worksheet'!E13*E6,2), ROUND('Salary Worksheet'!E4/12*E6,2)) -> 0 | G6: 0 | H6: =IF($C$4=1,ROUND('Salary Worksheet'!F13*G6,2), ROUND('Salary Worksheet'!F4/12*G6,0)) -> 0 | I6: 0 | J6: =IF($C$4=1,ROUND('Salary Worksheet'!G13*I6,2), ROUND('Salary Worksheet'!G4/12*I6,0)) -> 0 | K6: 0 | L6: =IF($C$4=1,ROUND('Salary Worksheet'!H13*K6,2), ROUND('Salary Worksheet'!H4/12*K6,0)) -> 0 | M6: =SUM(L6,J6,H6,F6,D6) -> 20662.11
C7: 0 | D7: =IF($C$4=1,ROUND('Salary Worksheet'!D14*C7,2), ROUND('Salary Worksheet'!D5/12*C7,2)) -> 0 | E7: 0 | F7: =IF($C$4=1,ROUND('Salary Worksheet'!E14*E7,2), ROUND('Salary Worksheet'!E5/12*E7,2)) -> 0 | G7: 0 | H7: =IF($C$4=1,ROUND('Salary Worksheet'!F14*G7,2), ROUND('Salary Worksheet'!F5/12*G7,0)) -> 0 | I7: 0 | J7: =IF($C$4=1,ROUND('Salary Worksheet'!G14*I7,2), ROUND('Salary Worksheet'!G5/12*I7,0)) -> 0 | K7: 0 | L7: =IF($C$4=1,ROUND('Salary Worksheet'!H14*K7,2), ROUND('Salary Worksheet'!H5/12*K7,0)) -> 0 | M7: =SUM(J7+H7+F7+D7+L7) -> 0
C8: 0 | D8: =IF($C$4=1,ROUND('Salary Worksheet'!D15*C8,2), ROUND('Salary Worksheet'!D6/12*C8,2)) -> 0 | E8: 0 | F8: =IF($C$4=1,ROUND('Salary Worksheet'!E15*E8,2), ROUND('Salary Worksheet'!E6/12*E8,2)) -> 0 | G8: 0 | H8: =IF($C$4=1,ROUND('Salary Worksheet'!F15*G8,2), ROUND('Salary Worksheet'!F6/12*G8,0)) -> 0 | I8: 0 | J8: =IF($C$4=1,ROUND('Salary Worksheet'!G15*I8,2), ROUND('Salary Worksheet'!G6/12*I8,0)) -> 0 | K8: 0 | L8: =IF($C$4=1,ROUND('Salary Worksheet'!H15*K8,2), ROUND('Salary Worksheet'!H6/12*K8,0)) -> 0 | M8: =SUM(J8+H8+F8+D8+L8) -> 0
A9: Subtotal Sr. Personnel Salary | D9: =SUM(D6:D8) -> 20662.11 | F9: =SUM(F6:F8) -> 0 | H9: =SUM(H6:H8) -> 0 | J9: =SUM(J6:J8) -> 0 | L9: =SUM(L6:L8) -> 0 | M9: =SUM(J9+H9+F9+D9+L9) -> 20662.11
A10: ='Salary Worksheet'!B16 -> Kieft | C10: 230 | D10: =IF($C$4=1,ROUND('Salary Worksheet'!D16*C10,2), ROUND('Salary Worksheet'!D7/12*C10,0)) -> 20390.91 | E10: 0 | F10: =IF($C$4=1,ROUND('Salary Worksheet'!E16*E10,2), ROUND('Salary Worksheet'!E7/12*E10,2)) -> 0 | G10: 0 | H10: =IF($C$4=1,ROUND('Salary Worksheet'!F16*G10,2), ROUND('Salary Worksheet'!F7/12*G10,2)) -> 0 | I10: 0 | J10: =IF($C$4=1,ROUND('Salary Worksheet'!G16*I10,2), ROUND('Salary Worksheet'!G7/12*I10,2)) -> 0 | K10: 0 | L10: =IF($C$4=1,ROUND('Salary Worksheet'!H16*K10,2), ROUND('Salary Worksheet'!H7/12*K10,2)) -> 0 | M10: =SUM(L10+J10+H10+F10+D10) -> 20390.91
A11: ='Salary Worksheet'!B17 -> Raanan | C11: 230 | D11: =IF($C$4=1,ROUND('Salary Worksheet'!D17*C11,2), ROUND('Salary Worksheet'!D4/12*C11,0)) -> 14644.32 | E11: 0 | F11: =IF($C$4=1,ROUND('Salary Worksheet'!E17*E11,2), ROUND('Salary Worksheet'!E4/12*E11,2)) -> 0 | G11: 0 | H11: =IF($C$4=1,ROUND('Salary Worksheet'!F17*G11,2), ROUND('Salary Worksheet'!F4/12*G11,2)) -> 0 | I11: 0 | J11: =IF($C$4=1,ROUND('Salary Worksheet'!G17*I11,2), ROUND('Salary Worksheet'!G4/12*I11,2)) -> 0 | K11: 0 | L11: =IF($C$4=1,ROUND('Salary Worksheet'!H17*K11,2), ROUND('Salary Worksheet'!H4/12*K11,2)) -> 0 | M11: 14644.32
C12: 0 | D12: =IF($C$4=1,ROUND('Salary Worksheet'!D19*C12,2), ROUND('Salary Worksheet'!D9/12*C12,0)) -> 0 | E12: 0 | F12: =IF($C$4=1,ROUND('Salary Worksheet'!E19*E12,2), ROUND('Salary Worksheet'!E9/12*E12,2)) -> 0 | G12: 0 | H12: =IF($C$4=1,ROUND('Salary Worksheet'!F19*G12,2), ROUND('Salary Worksheet'!F9/12*G12,2)) -> 0 | I12: 0 | J12: =IF($C$4=1,ROUND('Salary Worksheet'!G19*I12,2), ROUND('Salary Worksheet'!G9/12*I12,2)) -> 0 | K12: 0 | L12: =IF($C$4=1,ROUND('Salary Worksheet'!H19*K12,2), ROUND('Salary Worksheet'!H9/12*K12,2)) -> 0 | M12: 0
C13: 0 | D13: =IF($C$4=1,ROUND('Salary Worksheet'!D22*C13,2), ROUND('Salary Worksheet'!D10/12*C13,0)) -> 0 | E13: 0 | F13: =IF($C$4=1,ROUND('Salary Worksheet'!E22*E13,2), ROUND('Salary Worksheet'!E10/12*E13,2)) -> 0 | G13: 0 | H13: =IF($C$4=1,ROUND('Salary Worksheet'!F22*G13,2), ROUND('Salary Worksheet'!F10/12*G13,2)) -> 0 | I13: 0 | J13: =IF($C$4=1,ROUND('Salary Worksheet'!G22*I13,2), ROUND('Salary Worksheet'!G10/12*I13,2)) -> 0 | K13: 0 | L13: =IF($C$4=1,ROUND('Salary Worksheet'!H22*K13,2), ROUND('Salary Worksheet'!H10/12*K13,2)) -> 0 | M13: 0
C14: 0 | D14: =IF($C$4=1,ROUND('Salary Worksheet'!D23*C14,2), ROUND('Salary Worksheet'!D11/12*C14,0)) -> 0 | E14: 0 | F14: =IF($C$4=1,ROUND('Salary Worksheet'!E23*E14,2), ROUND('Salary Worksheet'!E11/12*E14,2)) -> 0 | G14: 0 | H14: =IF($C$4=1,ROUND('Salary Worksheet'!F23*G14,2), ROUND('Salary Worksheet'!F11/12*G14,2)) -> 0 | I14: 0 | J14: =IF($C$4=1,ROUND('Salary Worksheet'!G23*I14,2), ROUND('Salary Worksheet'!G11/12*I14,2)) -> 0 | K14: 0 | L14: =IF($C$4=1,ROUND('Salary Worksheet'!H23*K14,2), ROUND('Salary Worksheet'!H11/12*K14,2)) -> 0 | M14: 0
C15: 0 | D15: =IF($C$4=1,ROUND('Salary Worksheet'!D22*C15,2), ROUND('Salary Worksheet'!D8/12*C15,0)) -> 0 | E15: 0 | F15: =IF($C$4=1,ROUND('Salary Worksheet'!E22*E15,2), ROUND('Salary Worksheet'!E8/12*E15,2)) -> 0 | G15: 0 | H15: =IF($C$4=1,ROUND('Salary Worksheet'!F22*G15,2), ROUND('Salary Worksheet'!F8/12*G15,2)) -> 0 | I15: 0 | J15: =IF($C$4=1,ROUND('Salary Worksheet'!G22*I15,2), ROUND('Salary Worksheet'!G8/12*I15,2)) -> 0 | K15: 0 | L15: =IF($C$4=1,ROUND('Salary Worksheet'!H22*K15,2), ROUND('Salary Worksheet'!H8/12*K15,2)) -> 0 | M15: 0
C16: 0 | D16: =IF($C$4=1,ROUND('Salary Worksheet'!D20*C16,2), ROUND('Salary Worksheet'!D6/12*C16,0)) -> 0 | E16: 0 | F16: =IF($C$4=1,ROUND('Salary Worksheet'!E20*E16,2), ROUND('Salary Worksheet'!E6/12*E16,2)) -> 0 | G16: 0 | H16: =IF($C$4=1,ROUND('Salary Worksheet'!F20*G16,2), ROUND('Salary Worksheet'!F6/12*G16,2)) -> 0 | I16: 0 | J16: =IF($C$4=1,ROUND('Salary Worksheet'!G20*I16,2), ROUND('Salary Worksheet'!G6/12*I16,2)) -> 0 | K16: 0 | L16: =IF($C$4=1,ROUND('Salary Worksheet'!H20*K16,2), ROUND('Salary Worksheet'!H6/12*K16,2)) -> 0 | M16: 0
C17: 0 | D17: =IF($C$4=1,ROUND('Salary Worksheet'!D23*C17,2), ROUND('Salary Worksheet'!D7/12*C17,0)) -> 0 | E17: 0 | F17: =IF($C$4=1,ROUND('Salary Worksheet'!E23*E17,2), ROUND('Salary Worksheet'!E7/12*E17,2)) -> 0 | G17: 0 | H17: =IF($C$4=1,ROUND('Salary Worksheet'!F23*G17,2), ROUND('Salary Worksheet'!F7/12*G17,2)) -> 0 | I17: 0 | J17: =IF($C$4=1,ROUND('Salary Worksheet'!G23*I17,2), ROUND('Salary Worksheet'!G7/12*I17,2)) -> 0 | K17: 0 | L17: =IF($C$4=1,ROUND('Salary Worksheet'!H23*K17,2), ROUND('Salary Worksheet'!H7/12*K17,2)) -> 0 | M17: 0
C18: 0 | D18: =IF($C$4=1,ROUND('Salary Worksheet'!D24*C18,2), ROUND('Salary Worksheet'!D8/12*C18,0)) -> 0 | E18: 0 | F18: =IF($C$4=1,ROUND('Salary Worksheet'!E24*E18,2), ROUND('Salary Worksheet'!E8/12*E18,2)) -> 0 | G18: 0 | H18: =IF($C$4=1,ROUND('Salary Worksheet'!F24*G18,2), ROUND('Salary Worksheet'!F8/12*G18,2)) -> 0 | I18: 0 | J18: =IF($C$4=1,ROUND('Salary Worksheet'!G24*I18,2), ROUND('Salary Worksheet'!G8/12*I18,2)) -> 0 | K18: 0 | L18: =IF($C$4=1,ROUND('Salary Worksheet'!H24*K18,2), ROUND('Salary Worksheet'!H8/12*K18,2)) -> 0 | M18: 0
C19: 0 | D19: =IF($C$4=1,ROUND('Salary Worksheet'!D23*C19,2), ROUND('Salary Worksheet'!D9/12*C19,0)) -> 0 | E19: 0 | F19: =IF($C$4=1,ROUND('Salary Worksheet'!E23*E19,2), ROUND('Salary Worksheet'!E9/12*E19,2)) -> 0 | G19: 0 | H19: =IF($C$4=1,ROUND('Salary Worksheet'!F23*G19,2), ROUND('Salary Worksheet'!F9/12*G19,2)) -> 0 | I19: 0 | J19: =IF($C$4=1,ROUND('Salary Worksheet'!G23*I19,2), ROUND('Salary Worksheet'!G9/12*I19,2)) -> 0 | K19: 0 | L19: =IF($C$4=1,ROUND('Salary Worksheet'!H23*K19,2), ROUND('Salary Worksheet'!H9/12*K19,2)) -> 0 | M19: 0
C20: 0 | D20: =IF($C$4=1,ROUND('Salary Worksheet'!D26*C20,2), ROUND('Salary Worksheet'!D10/12*C20,0)) -> 0 | E20: 0 | F20: =IF($C$4=1,ROUND('Salary Worksheet'!E26*E20,2), ROUND('Salary Worksheet'!E10/12*E20,2)) -> 0 | G20: 0 | H20: =IF($C$4=1,ROUND('Salary Worksheet'!F26*G20,2), ROUND('Salary Worksheet'!F10/12*G20,2)) -> 0 | I20: 0 | J20: =IF($C$4=1,ROUND('Salary Worksheet'!G26*I20,2), ROUND('Salary Worksheet'!G10/12*I20,2)) -> 0 | K20: 0 | L20: =IF($C$4=1,ROUND('Salary Worksheet'!H26*K20,2), ROUND('Salary Worksheet'!H10/12*K20,2)) -> 0 | M20: 0
C21: 0 | D21: =IF($C$4=1,ROUND('Salary Worksheet'!D27*C21,2), ROUND('Salary Worksheet'!D11/12*C21,0)) -> 0 | E21: 0 | F21: =IF($C$4=1,ROUND('Salary Worksheet'!E27*E21,2), ROUND('Salary Worksheet'!E11/12*E21,2)) -> 0 | G21: 0 | H21: =IF($C$4=1,ROUND('Salary Worksheet'!F27*G21,2), ROUND('Salary Worksheet'!F11/12*G21,2)) -> 0 | I21: 0 | J21: =IF($C$4=1,ROUND('Salary Worksheet'!G27*I21,2), ROUND('Salary Worksheet'!G11/12*I21,2)) -> 0 | K21: 0 | L21: =IF($C$4=1,ROUND('Salary Worksheet'!H27*K21,2), ROUND('Salary Worksheet'!H11/12*K21,2)) -> 0 | M21: 0
A22: Subtotal Other Employee Salary | C22: 0 | D22: =SUM(D10:D21) -> 35035.23 | E22: 0 | F22: =SUM(F10:F21) -> 0 | G22: 0 | H22: =SUM(H10:H21) -> 0 | I22: 0 | J22: =SUM(J10:J21) -> 0 | K22: 0 | L22: =SUM(L10:L21) -> 0 | M22: =SUM(J22+H22+F22+D22+L22) -> 35035.23
A23: POSTDOCS, GSRs, PART-TIME, TEMPS | C23: 0 | E23: 0 | G23: 0 | I23: 0 | K23: 0
C24: 0 | E24: 0 | G24: 0 | I24: 0 | K24: 0
A25: PostDoc(s) | C25: 0 | D25: =IF($C$4=1,ROUND('Salary Worksheet'!D30*C25,2), ROUND('Salary Worksheet'!D29/12*C25,0)) -> 0 | E25: 0 | F25: =IF($C$4=1,ROUND('Salary Worksheet'!E30*E25,2), ROUND('Salary Worksheet'!E29/12*E25,0)) -> 0 | G25: 0 | H25: =IF($C$4=1,ROUND('Salary Worksheet'!F30*G25,2), ROUND('Salary Worksheet'!F29/12*G25,0)) -> 0 | I25: 0 | J25: =IF($C$4=1,ROUND('Salary Worksheet'!G30*I25,2), ROUND('Salary Worksheet'!G29/12*I25,0)) -> 0 | K25: 0 | L25: =IF($C$4=1,ROUND('Salary Worksheet'!H30*K25,2), ROUND('Salary Worksheet'!H29/12*K25,0)) -> 0 | M25: =SUM(J25+H25+F25+D25+L25) -> 0
A26: Graduate Student(s) (GSRs) | C26: 0 | D26: =IF($C$4=1,ROUND('Salary Worksheet'!D32*C26,2), ROUND('Salary Worksheet'!D31/12*C26,0)) -> 0 | E26: 0 | F26: =IF($C$4=1,ROUND('Salary Worksheet'!E32*E26,2), ROUND('Salary Worksheet'!E31/12*E26,0)) -> 0 | G26: 0 | H26: =IF($C$4=1,ROUND('Salary Worksheet'!F32*G26,2), ROUND('Salary Worksheet'!F31/12*G26,0)) -> 0 | I26: 0 | J26: =IF($C$4=1,ROUND('Salary Worksheet'!G32*I26,2), ROUND('Salary Worksheet'!G31/12*I26,0)) -> 0 | K26: 0 | L26: =IF($C$4=1,ROUND('Salary Worksheet'!H32*K26,2), ROUND('Salary Worksheet'!H31/12*K26,0)) -> 0 | M26: 0
A27: NA PT (30-39 hrs) | C27: 0 | D27: =IF($C$4=1,ROUND('Salary Worksheet'!E45*C27,2), ROUND('Salary Worksheet'!E38/12*C27,0)) -> 0 | E27: 0 | F27: =IF($C$4=1,ROUND('Salary Worksheet'!F45*E27,2), ROUND('Salary Worksheet'!F38/12*E27,0)) -> 0 | G27: 0 | H27: =IF($C$4=1,ROUND('Salary Worksheet'!G45*G27,2), ROUND('Salary Worksheet'!G38/12*G27,0)) -> 0 | I27: 0 | J27: =IF($C$4=1,ROUND('Salary Worksheet'!H45*I27,2), ROUND('Salary Worksheet'!H38/12*I27,0)) -> 0 | K27: 0 | L27: =IF($C$4=1,ROUND('Salary Worksheet'!I45*K27,2), ROUND('Salary Worksheet'!I38/12*K27,0)) -> 0 | M27: 0
A28: NA PT (30-39 hrs) | C28: 0 | D28: =IF($C$4=1,ROUND('Salary Worksheet'!E46*C28,2), ROUND('Salary Worksheet'!E39/12*C28,0)) -> 0 | E28: 0 | F28: =IF($C$4=1,ROUND('Salary Worksheet'!F46*E28,2), ROUND('Salary Worksheet'!F39/12*E28,0)) -> 0 | G28: 0 | H28: =IF($C$4=1,ROUND('Salary Worksheet'!G46*G28,2), ROUND('Salary Worksheet'!G39/12*G28,0)) -> 0 | I28: 0 | J28: =IF($C$4=1,ROUND('Salary Worksheet'!H46*I28,2), ROUND('Salary Worksheet'!H39/12*I28,0)) -> 0 | K28: 0 | L28: =IF($C$4=1,ROUND('Salary Worksheet'!I46*K28,2), ROUND('Salary Worksheet'!I39/12*K28,0)) -> 0 | M28: 0
A29: Part-time (<= 29 hrs/wk) 1 | C29: 0 | D29: =IF($C$4=1,ROUND('Salary Worksheet'!E47*C29,2), ROUND('Salary Worksheet'!E40/12*C29,0)) -> 0 | E29: 0 | F29: =IF($C$4=1,ROUND('Salary Worksheet'!F47*E29,2), ROUND('Salary Worksheet'!F40/12*E29,0)) -> 0 | G29: 0 | H29: =IF($C$4=1,ROUND('Salary Worksheet'!G47*G29,2), ROUND('Salary Worksheet'!G40/12*G29,0)) -> 0 | I29: 0 | J29: =IF($C$4=1,ROUND('Salary Worksheet'!H47*I29,2), ROUND('Salary Worksheet'!H40/12*I29,0)) -> 0 | K29: 0 | L29: =IF($C$4=1,ROUND('Salary Worksheet'!I47*K29,2), ROUND('Salary Worksheet'!I40/12*K29,0)) -> 0 | M29: 0
A30: Part-time (<= 29 hrs/wk) 2 | C30: 0 | D30: =IF($C$4=1,ROUND('Salary Worksheet'!E48*C30,2), ROUND('Salary Worksheet'!E41/12*C30,0)) -> 0 | E30: 0 | F30: =IF($C$4=1,ROUND('Salary Worksheet'!F48*E30,2), ROUND('Salary Worksheet'!F41/12*E30,0)) -> 0 | G30: 0 | H30: =IF($C$4=1,ROUND('Salary Worksheet'!G48*G30,2), ROUND('Salary Worksheet'!G41/12*G30,0)) -> 0 | I30: 0 | J30: =IF($C$4=1,ROUND('Salary Worksheet'!H48*I30,2), ROUND('Salary Worksheet'!H41/12*I30,0)) -> 0 | K30: 0 | L30: =IF($C$4=1,ROUND('Salary Worksheet'!I48*K30,2), ROUND('Salary Worksheet'!I41/12*K30,0)) -> 0 | M30: 0
A31: Temporary Employee 1 | C31: 0 | D31: =IF($C$4=1,ROUND('Salary Worksheet'!E49*C31,2), ROUND('Salary Worksheet'!E42/12*C31,0)) -> 0 | E31: 0 | F31: =IF($C$4=1,ROUND('Salary Worksheet'!F49*E31,2), ROUND('Salary Worksheet'!F42/12*E31,0)) -> 0 | G31: 0 | H31: =IF($C$4=1,ROUND('Salary Worksheet'!G49*G31,2), ROUND('Salary Worksheet'!G42/12*G31,0)) -> 0 | I31: 0 | J31: =IF($C$4=1,ROUND('Salary Worksheet'!H49*I31,2), ROUND('Salary Worksheet'!H42/12*I31,0)) -> 0 | K31: 0 | L31: =IF($C$4=1,ROUND('Salary Worksheet'!I49*K31,2), ROUND('Salary Worksheet'!I42/12*K31,0)) -> 0 | M31: 0
A32: Temporary Employee 2 | C32: 0 | D32: =IF($C$4=1,ROUND('Salary Worksheet'!E50*C32,2), ROUND('Salary Worksheet'!E43/12*C32,0)) -> 0 | E32: 0 | F32: =IF($C$4=1,ROUND('Salary Worksheet'!F50*E32,2), ROUND('Salary Worksheet'!F43/12*E32,0)) -> 0 | G32: 0 | H32: =IF($C$4=1,ROUND('Salary Worksheet'!G50*G32,2), ROUND('Salary Worksheet'!G43/12*G32,0)) -> 0 | I32: 0 | J32: =IF($C$4=1,ROUND('Salary Worksheet'!H50*I32,2), ROUND('Salary Worksheet'!H43/12*I32,0)) -> 0 | K32: 0 | L32: =IF($C$4=1,ROUND('Salary Worksheet'!I50*K32,2), ROUND('Salary Worksheet'!I43/12*K32,0)) -> 0 | M32: 0
A33: Subtotal Other Personnel Salary | D33: =SUM(D22:D31) -> 35035.23 | F33: =SUM(F22:F31) -> 0 | H33: =SUM(H22:H31) -> 0 | J33: =SUM(J22:J31) -> 0 | L33: =SUM(L22:L31) -> 0 | M33: 35035.23
A34: Total Salary & Wages | D34: =SUM(D33+D9) -> 55697.34 | F34: =SUM(F33+F9) -> 0 | H34: =SUM(H33+H9) -> 0 | J34: =SUM(J33+J9) -> 0 | L34: =SUM(L33+L9) -> 0 | M34: 55697.34
A35: FRINGE BENEFITS
A36: Full-time (Regular) | B36: 0.5715 | D36: =((D9+D22)*$B$36) -> 31831.02981 | F36: =((F9+F22)*$B$36) -> 0 | H36: =((H9+H22)*$B$36) -> 0 | J36: =((J9+J22)*$B$36) -> 0 | L36: =((L9+L22)*$B$36) -> 0 | M36: =SUM(J36+H36+F36+D36+L36) -> 31831.02981
A37: PostDoc | B37: 0.4123 | D37: =D25*$B$37 -> 0 | F37: =F25*$B$37 -> 0 | H37: =H25*$B$37 -> 0 | J37: =J25*$B$37 -> 0 | L37: =L25*$B$37 -> 0 | M37: 0
A38: PT (30-39 hrs) | B38: 0.5715 | D38: =(SUM(D27:D28))*$B$38 -> 0 | F38: =(SUM(F27:F28)*$B$38) -> 0 | H38: =(SUM(H27:H28)*$B$38) -> 0 | J38: =(SUM(J27:J28)*$B$38) -> 0 | L38: =(SUM(L27:L28)*$B$38) -> 0 | M38: 0
A39: GSRs + PT (20-29 hrs) | B39: 0.3062 | D39: =(SUM(D26,D29,D30))*$B$39 -> 0 | F39: =(SUM(F26,F29,F30))*$B$39 -> 0 | H39: =(SUM(H26,H29,H30))*$B$39 -> 0 | J39: =(SUM(J26,J29,J30))*$B$39 -> 0 | L39: =(SUM(L26,L29,L30))*$B$39 -> 0 | M39: 0
A40: Temp | B40: 0.1111 | D40: =(D31+D32)*$B$40 -> 0 | F40: =(F31+F32)*$B$40 -> 0 | H40: =(H31+H32)*$B$40 -> 0 | J40: =(J31+J32)*$B$40 -> 0 | L40: =(L31+L32)*$B$40 -> 0 | M40: 0
A41: Total Fringe Benefits | D41: =SUM(D36:D40) -> 31831.02981 | F41: =SUM(F36:F40) -> 0 | H41: =SUM(H36:H40) -> 0 | J41: =SUM(J36:J40) -> 0 | L41: =SUM(L36:L40) -> 0 | M41: 31831.02981
A42: Total Salary & Benefits | D42: =SUM(D41,D34) -> 87528.36981 | F42: =SUM(F41,F34) -> 0 | H42: =SUM(H41,H34) -> 0 | J42: =SUM(J41,J34) -> 0 | L42: =SUM(L41,L34) -> 0 | M42: 87528.36981
A43: CAPITAL EQUIPMENT (items >$5K)
M44: =SUM(J44+H44+F44+D44+L44) -> 0
M45: =SUM(J45+H45+F45+D45+L45) -> 0
M46: 0
M47: 0
M48: 0
M49: 0
M50: 0
M51: 0
M52: 0
M53: 0
A54: Total Equipment | D54: =SUM(D44:D53) -> 0 | F54: =SUM(F44:F53) -> 0 | H54: =SUM(H44:H53) -> 0 | J54: =SUM(J44:J53) -> 0 | L54: =SUM(L44:L53) -> 0 | M54: =SUM(L54,J54,H54,F54,D54) -> 0
A55: TRAVEL
A56: Trip 1: New England Expedition | D56: =1350+2730+1491+315+630 -> 6516 | M56: =SUM(L56,J56,H56,F56,D56) -> 6516
A57: Trip 2: Lake Superior Under Ice Demo | D57: =1350+2730+1491+315+630 -> 6516 | M57: =SUM(L57,J57,H57,F57,D57) -> 6516
A58: Trip 3: Washington D.C.: Hobson Program review meeting | D58: =495+260+213 -> 968 | M58: =SUM(L58,J58,H58,F58,D58) -> 968
M59: =SUM(L59,J59,H59,F59,D59) -> 0
A60: Total Travel | D60: =SUM(D56:D59) -> 14000 | F60: =SUM(F56:F58) -> 0 | H60: =SUM(H56:H58) -> 0 | J60: =SUM(J56:J58) -> 0 | L60: =SUM(L56:L58) -> 0 | M60: =SUM(L60,J60,H60,F60,D60) -> 14000
A61: PARTICIPANT SUPPORT
A62: Stipends | M62: =SUM(L62,J62,H62,F62,D62) -> 0
A63: Travel | M63: =SUM(L63,J63,H63,F63,D63) -> 0
A64: Subsistence | M64: =SUM(L64,J64,H64,F64,D64) -> 0
A65: Other | M65: =SUM(L65,J65,H65,F65,D65) -> 0
A66: Total Participant Support | D66: =SUM(D62:D65) -> 0 | F66: =SUM(F62:F65) -> 0 | H66: =SUM(H62:H65) -> 0 | J66: =SUM(J62:J65) -> 0 | L66: =SUM(L62:L65) -> 0 | M66: =SUM(L66,J66,H66,F66,D66) -> 0
A67: MATERIALS & SUPPLIES
A68: expedition clothing: 3 sets of jackt and parka liners | D68: 480 | M68: =SUM(L68,J68,H68,F68,D68) -> 480
A69: expedition clothing: 3 jackets | D69: 520 | M69: =SUM(L69,J69,H69,F69,D69) -> 520
M70: 0
M71: 0
M72: 0
M73: 0
M74: 0
M75: 0
M76: 0
M77: 0
A78: Total Materials & Supplies | D78: =SUM(D68:D77) -> 1000 | F78: =SUM(F68:F77) -> 0 | H78: =SUM(H68:H77) -> 0 | J78: =SUM(J68:J77) -> 0 | L78: =SUM(L68:L77) -> 0 | M78: =SUM(L78,J78,H78,F78,D78) -> 1000
A79: PUBLICATIONS/DOCUMENTATION
M80: =SUM(L80,J80,H80,F80,D80) -> 0
M81: =SUM(L81,J81,H81,F81,D81) -> 0
A82: Total Publications | D82: =SUM(D80) -> 0 | F82: =SUM(F80) -> 0 | H82: =SUM(H80:H80) -> 0 | J82: =SUM(J80:J80) -> 0 | L82: =SUM(L80:L80) -> 0 | M82: =SUM(L82,J82,H82,F82,D82) -> 0
A83: OUTSIDE SERVICES
M84: =SUM(L84,J84,H84,F84,D84) -> 0
M85: =SUM(L85,J85,H85,F85,D85) -> 0
M86: =SUM(L86,J86,H86,F86,D86) -> 0
A87: Total Outside Services | D87: =SUM(D84:D85) -> 0 | F87: =SUM(F84:F85) -> 0 | H87: =SUM(H84:H85) -> 0 | J87: =SUM(J84:J85) -> 0 | L87: =SUM(L84:L85) -> 0 | M87: =SUM(L87,J87,H87,F87,D87) -> 0
A88: SUBAWARDS
M89: =SUM(L89,J89,H89,F89,D89) -> 0
M90: =SUM(L90,J90,H90,F90,D90) -> 0
M91: =SUM(L91,J91,H91,F91,D91) -> 0
M92: =SUM(L92,J92,H92,F92,D92) -> 0
M93: =SUM(L93,J93,H93,F93,D93) -> 0
M94: 0
M95: 0
M96: 0
M97: 0
M98: 0
M99: 0
M100: 0
M101: =SUM(L101,J101,H101,F101,D101) -> 0
M102: =SUM(L102,J102,H102,F102,D102) -> 0
M103: =SUM(L103,J103,H103,F103,D103) -> 0
M104: 0
M105: 0
M106: 0
M107: 0
M108: 0
M109: 0
M110: 0
A111: Total Subawards | D111: =SUM(D89:D110) -> 0 | F111: =SUM(F89:F110) -> 0 | H111: =SUM(H89:H110) -> 0 | J111: =SUM(J89:J110) -> 0 | L111: =SUM(L89:L110) -> 0 | M111: =SUM(M89:M110) -> 0
A112: Subawards subject to OH | D112: ='Subaward Worksheet'!B71 -> 0 | F112: ='Subaward Worksheet'!C71 -> 0 | H112: ='Subaward Worksheet'!D71 -> 0 | J112: ='Subaward Worksheet'!E71 -> 0 | L112: ='Subaward Worksheet'!F71 -> 0
A113: OH on Subawards | D113: ='Subaward Worksheet'!$B$72 -> 0 | F113: ='Subaward Worksheet'!$C$72 -> 0 | H113: ='Subaward Worksheet'!$D$72 -> 0 | J113: ='Subaward Worksheet'!$E$72 -> 0 | L113: ='Subaward Worksheet'!$F$72 -> 0 | M113: =SUM(L113,J113,H113,F113,D113) -> 0
A114: SHIP TIME | B114: Rate | C114: # Days | E114: # Days | G114: # Days | I114: # Days | K114: # Days
C115: 0 | D115: =B115*C115 -> 0 | F115: =B115*E115 -> 0 | H115: =B115*G115 -> 0 | J115: =B115*I115 -> 0 | L115: =B115*K115 -> 0 | M115: =SUM(L115,J115,H115,F115,D115) -> 0
D116: =B116*C116 -> 0 | F116: =B116*E116 -> 0 | H116: =B116*G116 -> 0 | J116: =B116*I116 -> 0 | L116: =B116*K116 -> 0 | M116: =SUM(L116,J116,H116,F116,D116) -> 0
A117: Total Ship Time | D117: =SUM(D115:D116) -> 0 | F117: =SUM(F115:F116) -> 0 | H117: =SUM(H115:H116) -> 0 | J117: =SUM(J115:J116) -> 0 | L117: =SUM(L115:L116) -> 0 | M117: =SUM(L117,J117,H117,F117,D117) -> 0
A118: TUITION/FEES | C118: Qtrs. | E118: Qtrs. | G118: Qtrs. | I118: Qtrs. | K118: Qtrs.
A119: UCSC Grad Student | C119: 0 | D119: =(C119*'Salary Worksheet'!D33) -> 0 | E119: 0 | F119: =(E119*'Salary Worksheet'!E33) -> 0 | G119: 0 | H119: =(G119*'Salary Worksheet'!F33) -> 0 | I119: 0 | J119: =(I119*'Salary Worksheet'!G33) -> 0 | K119: 0 | L119: =(K119*'Salary Worksheet'!H33) -> 0 | M119: =SUM(L119,J119,H119,F119,D119) -> 0
A120: UCSC Grad Student - Nonres. | C120: 0 | D120: =(C120*'Salary Worksheet'!D34) -> 0 | E120: 0 | F120: =(E120*'Salary Worksheet'!E34) -> 0 | G120: 0 | H120: =(G120*'Salary Worksheet'!F34) -> 0 | I120: 0 | J120: =(I120*'Salary Worksheet'!G34) -> 0 | K120: 0 | L120: =(K120*'Salary Worksheet'!H34) -> 0 | M120: =SUM(L120,J120,H120,F120,D120) -> 0
A121: Total Tuition/Fees | D121: =SUM(D119:D120) -> 0 | F121: =SUM(F119:F120) -> 0 | H121: =SUM(H119:H120) -> 0 | J121: =SUM(J119:J120) -> 0 | L121: =SUM(L119:L120) -> 0 | M121: =SUM(L121,J121,H121,F121,D121) -> 0
A122: SHIPPING
M123: =SUM(L123,J123,H123,F123,D123) -> 0
A124: Total Shipping | D124: =SUM(D123) -> 0 | F124: =SUM(F123) -> 0 | H124: =SUM(H123:H123) -> 0 | J124: =SUM(J123:J123) -> 0 | L124: =SUM(L123:L123) -> 0 | M124: 0
A126: TOTAL DIRECT COSTS | D126: =SUM(D124,D121,D117,D111,D87,D82,D78,D66,D60,D54,D42) -> 102528.3698 | F126: =SUM(F124,F121,F117,F111,F87,F82,F78,F66,F60,F54,F42) -> 0 | H126: =SUM(H124,H121,H117,H111,H87,H82,H78,H66,H60,H54,H42) -> 0 | J126: =SUM(J124,J121,J117,J111,J87,J82,J78,J66,J60,J54,J42) -> 0 | L126: =SUM(L124,L121,L117,L111,L87,L82,L78,L66,L60,L54,L42) -> 0 | M126: 102528.3698
A127: MODIFIED TOTAL DIRECT COST BASE | D127: =D126-D117-D111+D112-D66-D54 -> 102528.3698 | F127: =F126-F117-F111+F112-F66-F54 -> 0 | H127: =H126-H117-H111+H112-H66-H54 -> 0 | J127: =J126-J117-J111+J112-J66-J54 -> 0 | L127: =L126-L117-L111+L112-L66-L54 -> 0 | M127: 102528.3698
A128: TOTAL INDIRECT COSTS | C128: 0.525 | D128: =ROUND(D127*$C$128,0) -> 53827 | F128: =ROUND(F127*$C$128,0) -> 0 | H128: =ROUND(H127*$C$128,0) -> 0 | J128: 0 | L128: 0 | M128: 53827
A129: TOTAL DIRECT & INDIRECT COSTS | D129: =+D128+D126 -> 156355.3698 | F129: =+F128+F126 -> 0 | H129: =+H128+H126 -> 0 | J129: =+J128+J126 -> 0 | L129: =+L128+L126 -> 0 | M129: 156355.3698

Sheet Y8 New Activities 100k Request
A1: Hobson UAK DHS Y8 New Activities Request
A3: TOTAL | C3: =D129 -> 100000.2319 | E3: =F129 -> 0 | G3: =H129 -> 0 | I3: =J129 -> 0 | K3: =L129 -> 0 | M3: =M129 -> 100000.2319
A4: SALARY/WAGES | C4: 1 | D4: Y1 | E4: =IF($C$4=1, "HOURS", "MONTHS") -> HOURS | F4: Y2 | G4: =IF($C$4=1, "HOURS", "MONTHS") -> HOURS | H4: Y3 | I4: =IF($C$4=1, "HOURS", "MONTHS") -> HOURS | J4: Y4 | K4: =IF($C$4=1, "HOURS", "MONTHS") -> HOURS | L4: Y5 | M4: Total
A6: ='Salary Worksheet'!B13 -> Hobson | C6: 80 | D6: =IF($C$4=1,ROUND('Salary Worksheet'!D13*C6,2), ROUND('Salary Worksheet'!D4/12*C6,2)) -> 7149.21 | E6: 0 | F6: =IF($C$4=1,ROUND('Salary Worksheet'!E13*E6,2), ROUND('Salary Worksheet'!E4/12*E6,2)) -> 0 | G6: 0 | H6: =IF($C$4=1,ROUND('Salary Worksheet'!F13*G6,2), ROUND('Salary Worksheet'!F4/12*G6,0)) -> 0 | I6: 0 | J6: =IF($C$4=1,ROUND('Salary Worksheet'!G13*I6,2), ROUND('Salary Worksheet'!G4/12*I6,0)) -> 0 | K6: 0 | L6: =IF($C$4=1,ROUND('Salary Worksheet'!H13*K6,2), ROUND('Salary Worksheet'!H4/12*K6,0)) -> 0 | M6: =SUM(L6,J6,H6,F6,D6) -> 7149.21
C7: 0 | D7: =IF($C$4=1,ROUND('Salary Worksheet'!D14*C7,2), ROUND('Salary Worksheet'!D5/12*C7,2)) -> 0 | E7: 0 | F7: =IF($C$4=1,ROUND('Salary Worksheet'!E14*E7,2), ROUND('Salary Worksheet'!E5/12*E7,2)) -> 0 | G7: 0 | H7: =IF($C$4=1,ROUND('Salary Worksheet'!F14*G7,2), ROUND('Salary Worksheet'!F5/12*G7,0)) -> 0 | I7: 0 | J7: =IF($C$4=1,ROUND('Salary Worksheet'!G14*I7,2), ROUND('Salary Worksheet'!G5/12*I7,0)) -> 0 | K7: 0 | L7: =IF($C$4=1,ROUND('Salary Worksheet'!H14*K7,2), ROUND('Salary Worksheet'!H5/12*K7,0)) -> 0 | M7: =SUM(J7+H7+F7+D7+L7) -> 0
C8: 0 | D8: =IF($C$4=1,ROUND('Salary Worksheet'!D15*C8,2), ROUND('Salary Worksheet'!D6/12*C8,2)) -> 0 | E8: 0 | F8: =IF($C$4=1,ROUND('Salary Worksheet'!E15*E8,2), ROUND('Salary Worksheet'!E6/12*E8,2)) -> 0 | G8: 0 | H8: =IF($C$4=1,ROUND('Salary Worksheet'!F15*G8,2), ROUND('Salary Worksheet'!F6/12*G8,0)) -> 0 | I8: 0 | J8: =IF($C$4=1,ROUND('Salary Worksheet'!G15*I8,2), ROUND('Salary Worksheet'!G6/12*I8,0)) -> 0 | K8: 0 | L8: =IF($C$4=1,ROUND('Salary Worksheet'!H15*K8,2), ROUND('Salary Worksheet'!H6/12*K8,0)) -> 0 | M8: =SUM(J8+H8+F8+D8+L8) -> 0
A9: Subtotal Sr. Personnel Salary | D9: =SUM(D6:D8) -> 7149.21 | F9: =SUM(F6:F8) -> 0 | H9: =SUM(H6:H8) -> 0 | J9: =SUM(J6:J8) -> 0 | L9: =SUM(L6:L8) -> 0 | M9: =SUM(J9+H9+F9+D9+L9) -> 7149.21
A10: ='Salary Worksheet'!B16 -> Kieft | C10: 225 | D10: =IF($C$4=1,ROUND('Salary Worksheet'!D16*C10,2), ROUND('Salary Worksheet'!D7/12*C10,0)) -> 19947.63 | E10: 0 | F10: =IF($C$4=1,ROUND('Salary Worksheet'!E16*E10,2), ROUND('Salary Worksheet'!E7/12*E10,2)) -> 0 | G10: 0 | H10: =IF($C$4=1,ROUND('Salary Worksheet'!F16*G10,2), ROUND('Salary Worksheet'!F7/12*G10,2)) -> 0 | I10: 0 | J10: =IF($C$4=1,ROUND('Salary Worksheet'!G16*I10,2), ROUND('Salary Worksheet'!G7/12*I10,2)) -> 0 | K10: 0 | L10: =IF($C$4=1,ROUND('Salary Worksheet'!H16*K10,2), ROUND('Salary Worksheet'!H7/12*K10,2)) -> 0 | M10: =SUM(L10+J10+H10+F10+D10) -> 19947.63
A11: ='Salary Worksheet'!B17 -> Raanan | C11: 229.78 | D11: =IF($C$4=1,ROUND('Salary Worksheet'!D17*C11,2), ROUND('Salary Worksheet'!D4/12*C11,0)) -> 14630.32 | E11: 0 | F11: =IF($C$4=1,ROUND('Salary Worksheet'!E17*E11,2), ROUND('Salary Worksheet'!E4/12*E11,2)) -> 0 | G11: 0 | H11: =IF($C$4=1,ROUND('Salary Worksheet'!F17*G11,2), ROUND('Salary Worksheet'!F4/12*G11,2)) -> 0 | I11: 0 | J11: =IF($C$4=1,ROUND('Salary Worksheet'!G17*I11,2), ROUND('Salary Worksheet'!G4/12*I11,2)) -> 0 | K11: 0 | L11: =IF($C$4=1,ROUND('Salary Worksheet'!H17*K11,2), ROUND('Salary Worksheet'!H4/12*K11,2)) -> 0 | M11: 14630.32
C12: 0 | D12: =IF($C$4=1,ROUND('Salary Worksheet'!D19*C12,2), ROUND('Salary Worksheet'!D9/12*C12,0)) -> 0 | E12: 0 | F12: =IF($C$4=1,ROUND('Salary Worksheet'!E19*E12,2), ROUND('Salary Worksheet'!E9/12*E12,2)) -> 0 | G12: 0 | H12: =IF($C$4=1,ROUND('Salary Worksheet'!F19*G12,2), ROUND('Salary Worksheet'!F9/12*G12,2)) -> 0 | I12: 0 | J12: =IF($C$4=1,ROUND('Salary Worksheet'!G19*I12,2), ROUND('Salary Worksheet'!G9/12*I12,2)) -> 0 | K12: 0 | L12: =IF($C$4=1,ROUND('Salary Worksheet'!H19*K12,2), ROUND('Salary Worksheet'!H9/12*K12,2)) -> 0 | M12: 0
C13: 0 | D13: =IF($C$4=1,ROUND('Salary Worksheet'!D22*C13,2), ROUND('Salary Worksheet'!D10/12*C13,0)) -> 0 | E13: 0 | F13: =IF($C$4=1,ROUND('Salary Worksheet'!E22*E13,2), ROUND('Salary Worksheet'!E10/12*E13,2)) -> 0 | G13: 0 | H13: =IF($C$4=1,ROUND('Salary Worksheet'!F22*G13,2), ROUND('Salary Worksheet'!F10/12*G13,2)) -> 0 | I13: 0 | J13: =IF($C$4=1,ROUND('Salary Worksheet'!G22*I13,2), ROUND('Salary Worksheet'!G10/12*I13,2)) -> 0 | K13: 0 | L13: =IF($C$4=1,ROUND('Salary Worksheet'!H22*K13,2), ROUND('Salary Worksheet'!H10/12*K13,2)) -> 0 | M13: 0
C14: 0 | D14: =IF($C$4=1,ROUND('Salary Worksheet'!D23*C14,2), ROUND('Salary Worksheet'!D11/12*C14,0)) -> 0 | E14: 0 | F14: =IF($C$4=1,ROUND('Salary Worksheet'!E23*E14,2), ROUND('Salary Worksheet'!E11/12*E14,2)) -> 0 | G14: 0 | H14: =IF($C$4=1,ROUND('Salary Worksheet'!F23*G14,2), ROUND('Salary Worksheet'!F11/12*G14,2)) -> 0 | I14: 0 | J14: =IF($C$4=1,ROUND('Salary Worksheet'!G23*I14,2), ROUND('Salary Worksheet'!G11/12*I14,2)) -> 0 | K14: 0 | L14: =IF($C$4=1,ROUND('Salary Worksheet'!H23*K14,2), ROUND('Salary Worksheet'!H11/12*K14,2)) -> 0 | M14: 0
C15: 0 | D15: =IF($C$4=1,ROUND('Salary Worksheet'!D22*C15,2), ROUND('Salary Worksheet'!D8/12*C15,0)) -> 0 | E15: 0 | F15: =IF($C$4=1,ROUND('Salary Worksheet'!E22*E15,2), ROUND('Salary Worksheet'!E8/12*E15,2)) -> 0 | G15: 0 | H15: =IF($C$4=1,ROUND('Salary Worksheet'!F22*G15,2), ROUND('Salary Worksheet'!F8/12*G15,2)) -> 0 | I15: 0 | J15: =IF($C$4=1,ROUND('Salary Worksheet'!G22*I15,2), ROUND('Salary Worksheet'!G8/12*I15,2)) -> 0 | K15: 0 | L15: =IF($C$4=1,ROUND('Salary Worksheet'!H22*K15,2), ROUND('Salary Worksheet'!H8/12*K15,2)) -> 0 | M15: 0
C16: 0 | D16: =IF($C$4=1,ROUND('Salary Worksheet'!D20*C16,2), ROUND('Salary Worksheet'!D6/12*C16,0)) -> 0 | E16: 0 | F16: =IF($C$4=1,ROUND('Salary Worksheet'!E20*E16,2), ROUND('Salary Worksheet'!E6/12*E16,2)) -> 0 | G16: 0 | H16: =IF($C$4=1,ROUND('Salary Worksheet'!F20*G16,2), ROUND('Salary Worksheet'!F6/12*G16,2)) -> 0 | I16: 0 | J16: =IF($C$4=1,ROUND('Salary Worksheet'!G20*I16,2), ROUND('Salary Worksheet'!G6/12*I16,2)) -> 0 | K16: 0 | L16: =IF($C$4=1,ROUND('Salary Worksheet'!H20*K16,2), ROUND('Salary Worksheet'!H6/12*K16,2)) -> 0 | M16: 0
C17: 0 | D17: =IF($C$4=1,ROUND('Salary Worksheet'!D23*C17,2), ROUND('Salary Worksheet'!D7/12*C17,0)) -> 0 | E17: 0 | F17: =IF($C$4=1,ROUND('Salary Worksheet'!E23*E17,2), ROUND('Salary Worksheet'!E7/12*E17,2)) -> 0 | G17: 0 | H17: =IF($C$4=1,ROUND('Salary Worksheet'!F23*G17,2), ROUND('Salary Worksheet'!F7/12*G17,2)) -> 0 | I17: 0 | J17: =IF($C$4=1,ROUND('Salary Worksheet'!G23*I17,2), ROUND('Salary Worksheet'!G7/12*I17,2)) -> 0 | K17: 0 | L17: =IF($C$4=1,ROUND('Salary Worksheet'!H23*K17,2), ROUND('Salary Worksheet'!H7/12*K17,2)) -> 0 | M17: 0
C18: 0 | D18: =IF($C$4=1,ROUND('Salary Worksheet'!D24*C18,2), ROUND('Salary Worksheet'!D8/12*C18,0)) -> 0 | E18: 0 | F18: =IF($C$4=1,ROUND('Salary Worksheet'!E24*E18,2), ROUND('Salary Worksheet'!E8/12*E18,2)) -> 0 | G18: 0 | H18: =IF($C$4=1,ROUND('Salary Worksheet'!F24*G18,2), ROUND('Salary Worksheet'!F8/12*G18,2)) -> 0 | I18: 0 | J18: =IF($C$4=1,ROUND('Salary Worksheet'!G24*I18,2), ROUND('Salary Worksheet'!G8/12*I18,2)) -> 0 | K18: 0 | L18: =IF($C$4=1,ROUND('Salary Worksheet'!H24*K18,2), ROUND('Salary Worksheet'!H8/12*K18,2)) -> 0 | M18: 0
C19: 0 | D19: =IF($C$4=1,ROUND('Salary Worksheet'!D23*C19,2), ROUND('Salary Worksheet'!D9/12*C19,0)) -> 0 | E19: 0 | F19: =IF($C$4=1,ROUND('Salary Worksheet'!E23*E19,2), ROUND('Salary Worksheet'!E9/12*E19,2)) -> 0 | G19: 0 | H19: =IF($C$4=1,ROUND('Salary Worksheet'!F23*G19,2), ROUND('Salary Worksheet'!F9/12*G19,2)) -> 0 | I19: 0 | J19: =IF($C$4=1,ROUND('Salary Worksheet'!G23*I19,2), ROUND('Salary Worksheet'!G9/12*I19,2)) -> 0 | K19: 0 | L19: =IF($C$4=1,ROUND('Salary Worksheet'!H23*K19,2), ROUND('Salary Worksheet'!H9/12*K19,2)) -> 0 | M19: 0
C20: 0 | D20: =IF($C$4=1,ROUND('Salary Worksheet'!D26*C20,2), ROUND('Salary Worksheet'!D10/12*C20,0)) -> 0 | E20: 0 | F20: =IF($C$4=1,ROUND('Salary Worksheet'!E26*E20,2), ROUND('Salary Worksheet'!E10/12*E20,2)) -> 0 | G20: 0 | H20: =IF($C$4=1,ROUND('Salary Worksheet'!F26*G20,2), ROUND('Salary Worksheet'!F10/12*G20,2)) -> 0 | I20: 0 | J20: =IF($C$4=1,ROUND('Salary Worksheet'!G26*I20,2), ROUND('Salary Worksheet'!G10/12*I20,2)) -> 0 | K20: 0 | L20: =IF($C$4=1,ROUND('Salary Worksheet'!H26*K20,2), ROUND('Salary Worksheet'!H10/12*K20,2)) -> 0 | M20: 0
C21: 0 | D21: =IF($C$4=1,ROUND('Salary Worksheet'!D27*C21,2), ROUND('Salary Worksheet'!D11/12*C21,0)) -> 0 | E21: 0 | F21: =IF($C$4=1,ROUND('Salary Worksheet'!E27*E21,2), ROUND('Salary Worksheet'!E11/12*E21,2)) -> 0 | G21: 0 | H21: =IF($C$4=1,ROUND('Salary Worksheet'!F27*G21,2), ROUND('Salary Worksheet'!F11/12*G21,2)) -> 0 | I21: 0 | J21: =IF($C$4=1,ROUND('Salary Worksheet'!G27*I21,2), ROUND('Salary Worksheet'!G11/12*I21,2)) -> 0 | K21: 0 | L21: =IF($C$4=1,ROUND('Salary Worksheet'!H27*K21,2), ROUND('Salary Worksheet'!H11/12*K21,2)) -> 0 | M21: 0
A22: Subtotal Other Employee Salary | C22: 0 | D22: =SUM(D10:D21) -> 34577.95 | E22: 0 | F22: =SUM(F10:F21) -> 0 | G22: 0 | H22: =SUM(H10:H21) -> 0 | I22: 0 | J22: =SUM(J10:J21) -> 0 | K22: 0 | L22: =SUM(L10:L21) -> 0 | M22: =SUM(J22+H22+F22+D22+L22) -> 34577.95
A23: POSTDOCS, GSRs, PART-TIME, TEMPS | C23: 0 | E23: 0 | G23: 0 | I23: 0 | K23: 0
C24: 0 | E24: 0 | G24: 0 | I24: 0 | K24: 0
A25: PostDoc(s) | C25: 0 | D25: =IF($C$4=1,ROUND('Salary Worksheet'!D30*C25,2), ROUND('Salary Worksheet'!D29/12*C25,0)) -> 0 | E25: 0 | F25: =IF($C$4=1,ROUND('Salary Worksheet'!E30*E25,2), ROUND('Salary Worksheet'!E29/12*E25,0)) -> 0 | G25: 0 | H25: =IF($C$4=1,ROUND('Salary Worksheet'!F30*G25,2), ROUND('Salary Worksheet'!F29/12*G25,0)) -> 0 | I25: 0 | J25: =IF($C$4=1,ROUND('Salary Worksheet'!G30*I25,2), ROUND('Salary Worksheet'!G29/12*I25,0)) -> 0 | K25: 0 | L25: =IF($C$4=1,ROUND('Salary Worksheet'!H30*K25,2), ROUND('Salary Worksheet'!H29/12*K25,0)) -> 0 | M25: =SUM(J25+H25+F25+D25+L25) -> 0
A26: Graduate Student(s) (GSRs) | C26: 0 | D26: =IF($C$4=1,ROUND('Salary Worksheet'!D32*C26,2), ROUND('Salary Worksheet'!D31/12*C26,0)) -> 0 | E26: 0 | F26: =IF($C$4=1,ROUND('Salary Worksheet'!E32*E26,2), ROUND('Salary Worksheet'!E31/12*E26,0)) -> 0 | G26: 0 | H26: =IF($C$4=1,ROUND('Salary Worksheet'!F32*G26,2), ROUND('Salary Worksheet'!F31/12*G26,0)) -> 0 | I26: 0 | J26: =IF($C$4=1,ROUND('Salary Worksheet'!G32*I26,2), ROUND('Salary Worksheet'!G31/12*I26,0)) -> 0 | K26: 0 | L26: =IF($C$4=1,ROUND('Salary Worksheet'!H32*K26,2), ROUND('Salary Worksheet'!H31/12*K26,0)) -> 0 | M26: 0
A27: NA PT (30-39 hrs) | C27: 0 | D27: =IF($C$4=1,ROUND('Salary Worksheet'!E45*C27,2), ROUND('Salary Worksheet'!E38/12*C27,0)) -> 0 | E27: 0 | F27: =IF($C$4=1,ROUND('Salary Worksheet'!F45*E27,2), ROUND('Salary Worksheet'!F38/12*E27,0)) -> 0 | G27: 0 | H27: =IF($C$4=1,ROUND('Salary Worksheet'!G45*G27,2), ROUND('Salary Worksheet'!G38/12*G27,0)) -> 0 | I27: 0 | J27: =IF($C$4=1,ROUND('Salary Worksheet'!H45*I27,2), ROUND('Salary Worksheet'!H38/12*I27,0)) -> 0 | K27: 0 | L27: =IF($C$4=1,ROUND('Salary Worksheet'!I45*K27,2), ROUND('Salary Worksheet'!I38/12*K27,0)) -> 0 | M27: 0
A28: NA PT (30-39 hrs) | C28: 0 | D28: =IF($C$4=1,ROUND('Salary Worksheet'!E46*C28,2), ROUND('Salary Worksheet'!E39/12*C28,0)) -> 0 | E28: 0 | F28: =IF($C$4=1,ROUND('Salary Worksheet'!F46*E28,2), ROUND('Salary Worksheet'!F39/12*E28,0)) -> 0 | G28: 0 | H28: =IF($C$4=1,ROUND('Salary Worksheet'!G46*G28,2), ROUND('Salary Worksheet'!G39/12*G28,0)) -> 0 | I28: 0 | J28: =IF($C$4=1,ROUND('Salary Worksheet'!H46*I28,2), ROUND('Salary Worksheet'!H39/12*I28,0)) -> 0 | K28: 0 | L28: =IF($C$4=1,ROUND('Salary Worksheet'!I46*K28,2), ROUND('Salary Worksheet'!I39/12*K28,0)) -> 0 | M28: =SUM(J28+H28+F28+D28+L28) -> 0
A29: Part-time (<= 29 hrs/wk) 1 | C29: 0 | D29: =IF($C$4=1,ROUND('Salary Worksheet'!E47*C29,2), ROUND('Salary Worksheet'!E40/12*C29,0)) -> 0 | E29: 0 | F29: =IF($C$4=1,ROUND('Salary Worksheet'!F47*E29,2), ROUND('Salary Worksheet'!F40/12*E29,0)) -> 0 | G29: 0 | H29: =IF($C$4=1,ROUND('Salary Worksheet'!G47*G29,2), ROUND('Salary Worksheet'!G40/12*G29,0)) -> 0 | I29: 0 | J29: =IF($C$4=1,ROUND('Salary Worksheet'!H47*I29,2), ROUND('Salary Worksheet'!H40/12*I29,0)) -> 0 | K29: 0 | L29: =IF($C$4=1,ROUND('Salary Worksheet'!I47*K29,2), ROUND('Salary Worksheet'!I40/12*K29,0)) -> 0 | M29: 0
A30: Part-time (<= 29 hrs/wk) 2 | C30: 0 | D30: =IF($C$4=1,ROUND('Salary Worksheet'!E48*C30,2), ROUND('Salary Worksheet'!E41/12*C30,0)) -> 0 | E30: 0 | F30: =IF($C$4=1,ROUND('Salary Worksheet'!F48*E30,2), ROUND('Salary Worksheet'!F41/12*E30,0)) -> 0 | G30: 0 | H30: =IF($C$4=1,ROUND('Salary Worksheet'!G48*G30,2), ROUND('Salary Worksheet'!G41/12*G30,0)) -> 0 | I30: 0 | J30: =IF($C$4=1,ROUND('Salary Worksheet'!H48*I30,2), ROUND('Salary Worksheet'!H41/12*I30,0)) -> 0 | K30: 0 | L30: =IF($C$4=1,ROUND('Salary Worksheet'!I48*K30,2), ROUND('Salary Worksheet'!I41/12*K30,0)) -> 0 | M30: =SUM(J30+H30+F30+D30+L30) -> 0
A31: Temporary Employee 1 | C31: 0 | D31: =IF($C$4=1,ROUND('Salary Worksheet'!E49*C31,2), ROUND('Salary Worksheet'!E42/12*C31,0)) -> 0 | E31: 0 | F31: =IF($C$4=1,ROUND('Salary Worksheet'!F49*E31,2), ROUND('Salary Worksheet'!F42/12*E31,0)) -> 0 | G31: 0 | H31: =IF($C$4=1,ROUND('Salary Worksheet'!G49*G31,2), ROUND('Salary Worksheet'!G42/12*G31,0)) -> 0 | I31: 0 | J31: =IF($C$4=1,ROUND('Salary Worksheet'!H49*I31,2), ROUND('Salary Worksheet'!H42/12*I31,0)) -> 0 | K31: 0 | L31: =IF($C$4=1,ROUND('Salary Worksheet'!I49*K31,2), ROUND('Salary Worksheet'!I42/12*K31,0)) -> 0 | M31: 0
A32: Temporary Employee 2 | C32: 0 | D32: =IF($C$4=1,ROUND('Salary Worksheet'!E50*C32,2), ROUND('Salary Worksheet'!E43/12*C32,0)) -> 0 | E32: 0 | F32: =IF($C$4=1,ROUND('Salary Worksheet'!F50*E32,2), ROUND('Salary Worksheet'!F43/12*E32,0)) -> 0 | G32: 0 | H32: =IF($C$4=1,ROUND('Salary Worksheet'!G50*G32,2), ROUND('Salary Worksheet'!G43/12*G32,0)) -> 0 | I32: 0 | J32: =IF($C$4=1,ROUND('Salary Worksheet'!H50*I32,2), ROUND('Salary Worksheet'!H43/12*I32,0)) -> 0 | K32: 0 | L32: =IF($C$4=1,ROUND('Salary Worksheet'!I50*K32,2), ROUND('Salary Worksheet'!I43/12*K32,0)) -> 0 | M32: =SUM(J32+H32+F32+D32+L32) -> 0
A33: Subtotal Other Personnel Salary | D33: =SUM(D22:D31) -> 34577.95 | F33: =SUM(F22:F31) -> 0 | H33: =SUM(H22:H31) -> 0 | J33: =SUM(J22:J31) -> 0 | L33: =SUM(L22:L31) -> 0 | M33: 34577.95
A34: Total Salary & Wages | D34: =SUM(D33+D9) -> 41727.16 | F34: =SUM(F33+F9) -> 0 | H34: =SUM(H33+H9) -> 0 | J34: =SUM(J33+J9) -> 0 | L34: =SUM(L33+L9) -> 0 | M34: 41727.16
A35: FRINGE BENEFITS
A36: Full-time (Regular) | B36: 0.5715 | D36: =((D9+D22)*$B$36) -> 23847.07194 | F36: =((F9+F22)*$B$36) -> 0 | H36: =((H9+H22)*$B$36) -> 0 | J36: =((J9+J22)*$B$36) -> 0 | L36: =((L9+L22)*$B$36) -> 0 | M36: =SUM(J36+H36+F36+D36+L36) -> 23847.07194
A37: PostDoc | B37: 0.4123 | D37: =D25*$B$37 -> 0 | F37: =F25*$B$37 -> 0 | H37: =H25*$B$37 -> 0 | J37: =J25*$B$37 -> 0 | L37: =L25*$B$37 -> 0 | M37: 0
A38: PT (30-39 hrs) | B38: 0.5715 | D38: =(SUM(D27:D28))*$B$38 -> 0 | F38: =(SUM(F27:F28)*$B$38) -> 0 | H38: =(SUM(H27:H28)*$B$38) -> 0 | J38: =(SUM(J27:J28)*$B$38) -> 0 | L38: =(SUM(L27:L28)*$B$38) -> 0 | M38: 0
A39: GSRs + PT (20-29 hrs) | B39: 0.3062 | D39: =(SUM(D26,D29,D30))*$B$39 -> 0 | F39: =(SUM(F26,F29,F30))*$B$39 -> 0 | H39: =(SUM(H26,H29,H30))*$B$39 -> 0 | J39: =(SUM(J26,J29,J30))*$B$39 -> 0 | L39: =(SUM(L26,L29,L30))*$B$39 -> 0 | M39: 0
A40: Temp | B40: 0.1111 | D40: =(D31+D32)*$B$40 -> 0 | F40: =(F31+F32)*$B$40 -> 0 | H40: =(H31+H32)*$B$40 -> 0 | J40: =(J31+J32)*$B$40 -> 0 | L40: =(L31+L32)*$B$40 -> 0 | M40: 0
A41: Total Fringe Benefits | D41: =SUM(D36:D40) -> 23847.07194 | F41: =SUM(F36:F40) -> 0 | H41: =SUM(H36:H40) -> 0 | J41: =SUM(J36:J40) -> 0 | L41: =SUM(L36:L40) -> 0 | M41: 23847.07194
A42: Total Salary & Benefits | D42: =SUM(D41,D34) -> 65574.23194 | F42: =SUM(F41,F34) -> 0 | H42: =SUM(H41,H34) -> 0 | J42: =SUM(J41,J34) -> 0 | L42: =SUM(L41,L34) -> 0 | M42: 65574.23194
A43: CAPITAL EQUIPMENT (items >$5K)
M44: =SUM(J44+H44+F44+D44+L44) -> 0
M45: =SUM(J45+H45+F45+D45+L45) -> 0
M46: 0
M47: 0
M48: 0
M49: 0
M50: 0
M51: 0
M52: 0
M53: 0
A54: Total Equipment | D54: =SUM(D44:D53) -> 0 | F54: =SUM(F44:F53) -> 0 | H54: =SUM(H44:H53) -> 0 | J54: =SUM(J44:J53) -> 0 | L54: =SUM(L44:L53) -> 0 | M54: =SUM(L54,J54,H54,F54,D54) -> 0
A55: TRAVEL
M56: =SUM(L56,J56,H56,F56,D56) -> 0
M57: =SUM(L57,J57,H57,F57,D57) -> 0
M58: =SUM(L58,J58,H58,F58,D58) -> 0
M59: =SUM(L59,J59,H59,F59,D59) -> 0
A60: Total Travel | D60: =SUM(D56:D59) -> 0 | F60: =SUM(F56:F58) -> 0 | H60: =SUM(H56:H58) -> 0 | J60: =SUM(J56:J58) -> 0 | L60: =SUM(L56:L58) -> 0 | M60: =SUM(L60,J60,H60,F60,D60) -> 0
A61: PARTICIPANT SUPPORT
A62: Stipends | M62: =SUM(L62,J62,H62,F62,D62) -> 0
A63: Travel | M63: =SUM(L63,J63,H63,F63,D63) -> 0
A64: Subsistence | M64: =SUM(L64,J64,H64,F64,D64) -> 0
A65: Other | M65: =SUM(L65,J65,H65,F65,D65) -> 0
A66: Total Participant Support | D66: =SUM(D62:D65) -> 0 | F66: =SUM(F62:F65) -> 0 | H66: =SUM(H62:H65) -> 0 | J66: =SUM(J62:J65) -> 0 | L66: =SUM(L62:L65) -> 0 | M66: =SUM(L66,J66,H66,F66,D66) -> 0
A67: MATERIALS & SUPPLIES
M68: =SUM(L68,J68,H68,F68,D68) -> 0
M69: =SUM(L69,J69,H69,F69,D69) -> 0
M70: 0
M71: 0
M72: 0
M73: 0
M74: 0
M75: 0
M76: 0
M77: 0
A78: Total Materials & Supplies | D78: =SUM(D68:D77) -> 0 | F78: =SUM(F68:F77) -> 0 | H78: =SUM(H68:H77) -> 0 | J78: =SUM(J68:J77) -> 0 | L78: =SUM(L68:L77) -> 0 | M78: =SUM(L78,J78,H78,F78,D78) -> 0
A79: PUBLICATIONS/DOCUMENTATION
M80: =SUM(L80,J80,H80,F80,D80) -> 0
M81: =SUM(L81,J81,H81,F81,D81) -> 0
A82: Total Publications | D82: =SUM(D80) -> 0 | F82: =SUM(F80) -> 0 | H82: =SUM(H80:H80) -> 0 | J82: =SUM(J80:J80) -> 0 | L82: =SUM(L80:L80) -> 0 | M82: =SUM(L82,J82,H82,F82,D82) -> 0
A83: OUTSIDE SERVICES
M84: =SUM(L84,J84,H84,F84,D84) -> 0
M85: =SUM(L85,J85,H85,F85,D85) -> 0
M86: =SUM(L86,J86,H86,F86,D86) -> 0
A87: Total Outside Services | D87: =SUM(D84:D85) -> 0 | F87: =SUM(F84:F85) -> 0 | H87: =SUM(H84:H85) -> 0 | J87: =SUM(J84:J85) -> 0 | L87: =SUM(L84:L85) -> 0 | M87: =SUM(L87,J87,H87,F87,D87) -> 0
A88: SUBAWARDS
M89: =SUM(L89,J89,H89,F89,D89) -> 0
M90: =SUM(L90,J90,H90,F90,D90) -> 0
M91: =SUM(L91,J91,H91,F91,D91) -> 0
M92: =SUM(L92,J92,H92,F92,D92) -> 0
M93: =SUM(L93,J93,H93,F93,D93) -> 0
M94: 0
M95: 0
M96: 0
M97: 0
M98: 0
M99: 0
M100: 0
M101: =SUM(L101,J101,H101,F101,D101) -> 0
M102: =SUM(L102,J102,H102,F102,D102) -> 0
M103: =SUM(L103,J103,H103,F103,D103) -> 0
M104: 0
M105: 0
M106: 0
M107: 0
M108: 0
M109: 0
M110: 0
A111: Total Subawards | D111: =SUM(D89:D110) -> 0 | F111: =SUM(F89:F110) -> 0 | H111: =SUM(H89:H110) -> 0 | J111: =SUM(J89:J110) -> 0 | L111: =SUM(L89:L110) -> 0 | M111: =SUM(M89:M110) -> 0
A112: Subawards subject to OH | D112: ='Subaward Worksheet'!B71 -> 0 | F112: ='Subaward Worksheet'!C71 -> 0 | H112: ='Subaward Worksheet'!D71 -> 0 | J112: ='Subaward Worksheet'!E71 -> 0 | L112: ='Subaward Worksheet'!F71 -> 0
A113: OH on Subawards | D113: ='Subaward Worksheet'!$B$72 -> 0 | F113: ='Subaward Worksheet'!$C$72 -> 0 | H113: ='Subaward Worksheet'!$D$72 -> 0 | J113: ='Subaward Worksheet'!$E$72 -> 0 | L113: ='Subaward Worksheet'!$F$72 -> 0 | M113: =SUM(L113,J113,H113,F113,D113) -> 0
A114: SHIP TIME | B114: Rate | C114: # Days | E114: # Days | G114: # Days | I114: # Days | K114: # Days
C115: 0 | D115: =B115*C115 -> 0 | F115: =B115*E115 -> 0 | H115: =B115*G115 -> 0 | J115: =B115*I115 -> 0 | L115: =B115*K115 -> 0 | M115: =SUM(L115,J115,H115,F115,D115) -> 0
D116: =B116*C116 -> 0 | F116: =B116*E116 -> 0 | H116: =B116*G116 -> 0 | J116: =B116*I116 -> 0 | L116: =B116*K116 -> 0 | M116: =SUM(L116,J116,H116,F116,D116) -> 0
A117: Total Ship Time | D117: =SUM(D115:D116) -> 0 | F117: =SUM(F115:F116) -> 0 | H117: =SUM(H115:H116) -> 0 | J117: =SUM(J115:J116) -> 0 | L117: =SUM(L115:L116) -> 0 | M117: =SUM(L117,J117,H117,F117,D117) -> 0
A118: TUITION/FEES | C118: Qtrs. | E118: Qtrs. | G118: Qtrs. | I118: Qtrs. | K118: Qtrs.
A119: UCSC Grad Student | C119: 0 | D119: =(C119*'Salary Worksheet'!D33) -> 0 | E119: 0 | F119: =(E119*'Salary Worksheet'!E33) -> 0 | G119: 0 | H119: =(G119*'Salary Worksheet'!F33) -> 0 | I119: 0 | J119: =(I119*'Salary Worksheet'!G33) -> 0 | K119: 0 | L119: =(K119*'Salary Worksheet'!H33) -> 0 | M119: =SUM(L119,J119,H119,F119,D119) -> 0
A120: UCSC Grad Student - Nonres. | C120: 0 | D120: =(C120*'Salary Worksheet'!D34) -> 0 | E120: 0 | F120: =(E120*'Salary Worksheet'!E34) -> 0 | G120: 0 | H120: =(G120*'Salary Worksheet'!F34) -> 0 | I120: 0 | J120: =(I120*'Salary Worksheet'!G34) -> 0 | K120: 0 | L120: =(K120*'Salary Worksheet'!H34) -> 0 | M120: =SUM(L120,J120,H120,F120,D120) -> 0
A121: Total Tuition/Fees | D121: =SUM(D119:D120) -> 0 | F121: =SUM(F119:F120) -> 0 | H121: =SUM(H119:H120) -> 0 | J121: =SUM(J119:J120) -> 0 | L121: =SUM(L119:L120) -> 0 | M121: =SUM(L121,J121,H121,F121,D121) -> 0
A122: SHIPPING
M123: =SUM(L123,J123,H123,F123,D123) -> 0
A124: Total Shipping | D124: =SUM(D123) -> 0 | F124: =SUM(F123) -> 0 | H124: =SUM(H123:H123) -> 0 | J124: =SUM(J123:J123) -> 0 | L124: =SUM(L123:L123) -> 0 | M124: 0
A126: TOTAL DIRECT COSTS | D126: =SUM(D124,D121,D117,D111,D87,D82,D78,D66,D60,D54,D42) -> 65574.23194 | F126: =SUM(F124,F121,F117,F111,F87,F82,F78,F66,F60,F54,F42) -> 0 | H126: =SUM(H124,H121,H117,H111,H87,H82,H78,H66,H60,H54,H42) -> 0 | J126: =SUM(J124,J121,J117,J111,J87,J82,J78,J66,J60,J54,J42) -> 0 | L126: =SUM(L124,L121,L117,L111,L87,L82,L78,L66,L60,L54,L42) -> 0 | M126: 65574.23194
A127: MODIFIED TOTAL DIRECT COST BASE | D127: =D126-D117-D111+D112-D66-D54 -> 65574.23194 | F127: =F126-F117-F111+F112-F66-F54 -> 0 | H127: =H126-H117-H111+H112-H66-H54 -> 0 | J127: =J126-J117-J111+J112-J66-J54 -> 0 | L127: =L126-L117-L111+L112-L66-L54 -> 0 | M127: 65574.23194
A128: TOTAL INDIRECT COSTS | C128: 0.525 | D128: =ROUND(D127*$C$128,0) -> 34426 | F128: =ROUND(F127*$C$128,0) -> 0 | H128: =ROUND(H127*$C$128,0) -> 0 | J128: 0 | L128: 0 | M128: 34426
A129: TOTAL DIRECT & INDIRECT COSTS | D129: =+D128+D126 -> 100000.2319 | F129: =+F128+F126 -> 0 | H129: =+H128+H126 -> 0 | J129: =+J128+J126 -> 0 | L129: =+L128+L126 -> 0 | M129: 100000.2319

Sheet Salary Worksheet
A1: SALARY WORKSHEET
B2: Salary Increase Rate: | C2: 0.03 | G2: CONFIDENTIAL INFORMATION
C3: ANNUAL SALARY | D3: YR-1 | E3: YR-2 | F3: YR-3 | G3: YR-4 | H3: YR-5
B4: PI/Co-PI1 | C4: 0 | D4: =ROUND(C4*($C$2+1),0) -> 0 | E4: =ROUND(D4*($C$2+1),0) -> 0 | F4: =ROUND(E4*($C$2+1),0) -> 0 | G4: =ROUND(F4*($C$2+1),0) -> 0 | H4: =ROUND(G4*($C$2+1),0) -> 0
B5: PI/Co-PI 2 | C5: 0 | D5: =ROUND(C5*($C$2+1),0) -> 0 | E5: =ROUND(D5*(C2+1),0) -> 0 | F5: =ROUND(E5*($C$2+1),0) -> 0 | G5: 0 | H5: 0
B6: PI/Co-PI 3 | C6: 0 | D6: 0 | E6: =ROUND(D6*(C2+1),0) -> 0 | F6: 0 | G6: 0 | H6: 0
B7: Other Employee | C7: 0 | D7: 0 | E7: =ROUND(D7*(C2+1),0) -> 0 | F7: 0 | G7: 0 | H7: 0
B8: Other Employee | C8: 0 | D8: 0 | E8: =ROUND(D8*(C2+1),0) -> 0 | F8: 0 | G8: 0 | H8: 0
B9: Other Employee | C9: 0 | D9: 0 | E9: =ROUND(D9*(C2+1),0) -> 0 | F9: 0 | G9: 0 | H9: 0
B10: Other Employee | C10: 0 | D10: 0 | E10: =ROUND(D10*(C2+1),0) -> 0 | F10: 0 | G10: 0 | H10: 0
B11: Other Employee | C11: 0 | D11: 0 | E11: =ROUND(D11*(C2+1),0) -> 0 | F11: 0 | G11: 0 | H11: 0
C12: HOURLY RATE | D12: YR-1 | E12: YR-2 | F12: YR-3 | G12: YR-4 | H12: YR-5
B13: Hobson | C13: =84.2352*1.03 -> 86.762256 | D13: =C13*1.03 -> 89.36512368 | E13: =ROUND(D13*1.03, 2) -> 92.05 | F13: =ROUND(E13*1.03, 2) -> 94.81 | G13: 97.65 | H13: 100.58
B14: PI/Co-PI 2 | C14: 0 | D14: =C14*1.03 -> 0 | E14: =ROUND(D14*1.03, 2) -> 0 | F14: 0 | G14: 0 | H14: 0
B15: PI/Co-PI 3 | C15: 0 | D15: 0 | E15: 0 | F15: 0 | G15: 0 | H15: 0
B16: Kieft | C16: =83.5669*1.03 -> 86.073907 | D16: 88.65612421 | E16: =ROUND(D16*1.03, 2) -> 91.32 | F16: =ROUND(E16*1.03, 2) -> 94.06 | G16: =ROUND(F16*1.03, 2) -> 96.88 | H16: =ROUND(G16*1.03, 2) -> 99.79
B17: Raanan | C17: =60.016*1.03 -> 61.81648 | D17: 63.6709744 | E17: 65.58 | F17: 67.55 | G17: 69.58 | H17: 71.67
B18: Other Employee | C18: 0 | D18: 0 | E18: 0 | F18: 0 | G18: 0 | H18: 0
B19: Other Employee | C19: 0 | D19: 0 | E19: 0 | F19: 0 | G19: 0 | H19: 0
B20: Other Employee | C20: 0 | D20: 0 | E20: 0 | F20: 0 | G20: 0 | H20: 0
B21: Other Employee | C21: 0 | D21: 0 | E21: 0 | F21: 0 | G21: 0 | H21: 0
B22: Other Employee | C22: 0 | D22: 0 | E22: 0 | F22: 0 | G22: 0 | H22: 0
B23: Other Employee | C23: 0 | D23: 0 | E23: 0 | F23: 0 | G23: 0 | H23: 0
B24: Other Employee | C24: 0 | D24: 0 | E24: =ROUND(D24*1.03, 2) -> 0 | F24: =ROUND(E24*1.03, 2) -> 0 | G24: =ROUND(F24*1.03, 2) -> 0 | H24: =ROUND(G24*1.03, 2) -> 0
B25: Other Employee | C25: 0 | D25: 0 | E25: 0 | F25: 0 | G25: 0 | H25: 0
B26: Other Employee | C26: 0 | D26: 0 | E26: 0 | F26: 0 | G26: 0 | H26: 0
B27: Other Employee | C27: 0 | D27: 0 | E27: 0 | F27: 0 | G27: 0 | H27: 0
A28: Postdoc salaries and grad student salaries and tuition are set by MBARI and UCSC policies. The cells below are locked and you do not need to enter any information here. Calculate postdoc and grad student salaries and tuition by entering months of effort/academic quarters in the corresponding cells in the Budget Worksheet.
B29: Postdocs | D29: 60000 | E29: 63000 | F29: 65000 | G29: =F29*1.03 -> 66950 | H29: =G29*1.03 -> 68958.5
C30: Postdoc (Hourly) | D30: =D29/2080 -> 28.84615385 | E30: =E29/2080 -> 30.28846154 | F30: =F29/2080 -> 31.25 | G30: =G29/2080 -> 32.1875 | H30: =H29/2080 -> 33.153125
B31: Graduate Students | D31: 30875 | E31: 30875 | F31: 30875 | G31: 24450 | H31: 34450
C32: Grad Student (Hourly) | D32: 23.75 | E32: 23.75 | F32: 23.75 | G32: 26.5 | H32: 26.5
A33: UCSC Resident Tuition (per quarter) | D33: 6660 | E33: =D33*1.07 -> 7126.2 | F33: =E33*1.07 -> 7625.034 | G33: 8158.78638 | H33: 8729.901427
A34: UCSC Non-Res Tuition (per quarter) | D34: 15000 | E34: 16050 | F34: 17173.5 | G34: 18375.645 | H34: 19661.94015
A36: PART-TIME & TEMP EMPLOYEES
A37: ANNUAL | C37: Hourly Rate | D37: Hrs/Wk | E37: ANNUAL SALARY | F37: YR-2 | G37: YR-3 | H37: YR-4 | I37: YR-5
B38: PT (30-39 hrs) 1 | C38: 0 | E38: =ROUND(C38*40*52,0) -> 0 | F38: =ROUND(E38*(1+$C$2),0) -> 0 | G38: 0 | H38: 0 | I38: =ROUND(H38*($C$2+1),0) -> 0
B39: PT (30-39 hrs) 2 | C39: 0 | E39: =ROUND(C39*40*52,0) -> 0 | F39: 0 | G39: 0 | H39: 0 | I39: =ROUND(H39*($C$2+1),0) -> 0
B40: PT (≤29 hrs) 1 | C40: 0 | E40: =ROUND(C40*40*52,0) -> 0 | F40: 0 | G40: 0 | H40: 0 | I40: 0
B41: PT (≤29 hrs) 2 | C41: 0 | E41: 0 | F41: 0 | G41: 0 | H41: 0 | I41: 0
B42: Temp 1 | C42: 0 | E42: 0 | F42: 0 | G42: 0 | H42: 0 | I42: 0
B43: Temp 2 | C43: 0 | E43: 0 | F43: =ROUND(E43*(1+$C$2),0) -> 0 | G43: =ROUND(F43*(1+$C$2),0) -> 0 | H43: =ROUND(G43*(1+$C$2),0) -> 0 | I43: =ROUND(H43*($C$2+1),0) -> 0
A44: HOURLY | C44: Hourly Rate | E44: Y1 | F44: YR-2 | G44: YR-3 | H44: YR-4 | I44: YR-5
B45: PT (30-39 hrs) 1 | C45: =C38 -> 0 | E45: =C38 -> 0 | F45: =E45*(1+$C$2) -> 0 | G45: =F45*(1+$C$2) -> 0 | H45: 0 | I45: 0
B46: PT (30-39 hrs) 2 | C46: 0 | E46: 0 | F46: =E46*(1+$C$2) -> 0 | G46: 0 | H46: 0 | I46: 0
B47: PT (≤29 hrs) 1 | C47: 0 | E47: 0 | F47: 0 | G47: 0 | H47: 0 | I47: 0
B48: PT (≤29 hrs) 2 | C48: 0 | E48: 0 | F48: 0 | G48: 0 | H48: 0 | I48: 0
B49: Temporary Employee 1 | C49: 0 | E49: 0 | F49: 0 | G49: 0 | H49: 0 | I49: 0
B50: Temporary Employee 2 | C50: 0 | E50: 0 | F50: =E50*(1+$C$2) -> 0 | G50: =F50*(1+$C$2) -> 0 | H50: =G50*(1+$C$2) -> 0 | I50: =H50*(1+$C$2) -> 0
A51: SALARY CALCULATOR
A52: Hours | B52: Hours | D52: Hourly rate: | E52: 0 | F52: Annual Salary: | G52: =ROUND(E52*40*52,0) -> 0
A53: Months | B53: Months | D53: Monthly rate: | E53: 0 | F53: Annual Salary: | G53: =ROUND(E53*12,0) -> 0
D54: Annual Salary | E54: 0 | F54: Hourly rate: | G54: =ROUND(E54/2080,2) -> 0

Sheet Subaward Worksheet
A1: SUBAWARD WORKSHEET
A2: Note: This worksheet calculates subaward overhead and is populated automatically. Enter subaward amounts in the main Budget Worksheet.
B3: Y1 | C3: Y2 | D3: Y3 | E3: Y4 | F3: Y5 | G3: Y1-5
A4: ='Y8 New Activities 100k Request'!$A$89 -> 0 | B4: ='Y8 New Activities 100k Request'!$D$89 -> 0 | C4: ='Y8 New Activities 100k Request'!$F$89 -> 0 | D4: ='Y8 New Activities 100k Request'!$H$89 -> 0 | E4: ='Y8 New Activities 100k Request'!$J$89 -> 0 | F4: ='Y8 New Activities 100k Request'!$L$89 -> 0 | G4: =SUM(B4:F4) -> 0
A5: Subject to OH | B5: =IF(B4>25000, 25000, B4) -> 0 | C5: =IF(B4+C4>25000, 25000-B5, C4) -> 0 | D5: =IF(B4+C4+D4>25000, 25000-(B5+C5), D4) -> 0 | E5: =IF(B4+C4+D4+E4>25000, 25000-(B5+C5+D5), E4) -> 0 | F5: =IF(B4+C4+D4+E4+F4>25000, 25000-(B5+C5+D5+E5), F4) -> 0 | G5: =SUM(B5:F5) -> 0
A6: OH | B6: =IF(B4>25000,13125,(B4*0.525)) -> 0 | C6: =IF(C4+B4>25000,13125-B6,ROUND(C4*0.525,0)) -> 0 | D6: =IF(D4+C4+B4>25000,13125-(B6+C6),(D4*0.525)) -> 0 | E6: =IF(E4+D4+C4+B4>25000,13125-(B6+C6+D6),(E4*0.525)) -> 0 | F6: =IF(F4+E4+D4+C4+B4>25000,13125-(B6+C6+D6+E6),(F4*0.525)) -> 0 | G6: =SUM(B6:F6) -> 0
A7: ='Y8 New Activities 100k Request'!$A$90 -> 0 | B7: ='Y8 New Activities 100k Request'!$D$90 -> 0 | C7: ='Y8 New Activities 100k Request'!$F$90 -> 0 | D7: ='Y8 New Activities 100k Request'!$H$90 -> 0 | E7: ='Y8 New Activities 100k Request'!$J$91 -> 0 | F7: ='Y8 New Activities 100k Request'!$L$90 -> 0 | G7: 0
A8: Subject to OH | B8: =IF(B7>25000, 25000, B7) -> 0 | C8: =IF(B7+C7>25000, 25000-B8, C7) -> 0 | D8: =IF(B7+C7+D7>25000, 25000-(B8+C8), D7) -> 0 | E8: =IF(B7+C7+D7+E7>25000, 25000-(B8+C8+D8), E7) -> 0 | F8: =IF(B7+C7+D7+E7+F7>25000, 25000-(B8+C8+D8+E8), F7) -> 0 | G8: =SUM(B8:F8) -> 0
A9: OH | B9: =IF(B7>25000,13125,(B7*0.525)) -> 0 | C9: =IF(C7+B7>25000,13125-B9,ROUND(C7*0.525,0)) -> 0 | D9: =IF(D7+C7+B7>25000,13125-(B9+C9),(D7*0.525)) -> 0 | E9: =IF(E7+D7+C7+B7>25000,13125-(B9+C9+D9),(E7*0.525)) -> 0 | F9: =IF(F7+E7+D7+C7+B7>25000,13125-(B9+C9+D9+E9),(F7*0.525)) -> 0 | G9: =SUM(B9:F9) -> 0
A10: ='Y8 New Activities 100k Request'!$A$91 -> 0 | B10: ='Y8 New Activities 100k Request'!$D$91 -> 0 | C10: ='Y8 New Activities 100k Request'!$F$91 -> 0 | D10: ='Y8 New Activities 100k Request'!$H$91 -> 0 | E10: ='Y8 New Activities 100k Request'!$J$91 -> 0 | F10: ='Y8 New Activities 100k Request'!$L$91 -> 0 | G10: =SUM(B10:F10) -> 0
A11: Subject to OH | B11: =IF(B10>25000, 25000, B10) -> 0 | C11: =IF(B10+C10>25000, 25000-B11, C10) -> 0 | D11: =IF(B10+C10+D10>25000, 25000-(B11+C11), D10) -> 0 | E11: =IF(B10+C10+D10+E10>25000, 25000-(B11+C11+D11), E10) -> 0 | F11: =IF(B10+C10+D10+E10+F10>25000, 25000-(B11+C11+D11+E11), F10) -> 0 | G11: =SUM(B11:F11) -> 0
A12: OH | B12: =IF(B10>25000,13125,(B10*0.525)) -> 0 | C12: =IF(C10+B10>25000,13125-B12,ROUND(C10*0.525,0)) -> 0 | D12: =IF(D10+C10+B10>25000,13125-(B12+C12),(D10*0.525)) -> 0 | E12: =IF(E10+D10+C10+B10>25000,13125-(B12+C12+D12),(E10*0.525)) -> 0 | F12: =IF(F10+E10+D10+C10+B10>25000,13125-(B12+C12+D12+E12),(F10*0.525)) -> 0 | G12: =SUM(B12:F12) -> 0
A13: ='Y8 New Activities 100k Request'!$A$92 -> 0 | B13: ='Y8 New Activities 100k Request'!$D$92 -> 0 | C13: ='Y8 New Activities 100k Request'!$F$92 -> 0 | D13: ='Y8 New Activities 100k Request'!$H$92 -> 0 | E13: ='Y8 New Activities 100k Request'!$J$92 -> 0 | F13: ='Y8 New Activities 100k Request'!$L$92 -> 0 | G13: 0
A14: Subject to OH | B14: =IF(B13>25000, 25000, B13) -> 0 | C14: =IF(B13+C13>25000, 25000-B14, C13) -> 0 | D14: =IF(B13+C13+D13>25000, 25000-(B14+C14), D13) -> 0 | E14: =IF(B13+C13+D13+E13>25000, 25000-(B14+C14+D14), E13) -> 0 | F14: =IF(B13+C13+D13+E13+F13>25000, 25000-(B14+C14+D14+E14), F13) -> 0 | G14: =SUM(B14:F14) -> 0
A15: OH | B15: =IF(B13>25000,13125,(B13*0.525)) -> 0 | C15: =IF(C13+B13>25000,13125-B15,ROUND(C13*0.525,0)) -> 0 | D15: =IF(D13+C13+B13>25000,13125-(B15+C15),(D13*0.525)) -> 0 | E15: =IF(E13+D13+C13+B13>25000,13125-(B15+C15+D15),(E13*0.525)) -> 0 | F15: =IF(F13+E13+D13+C13+B13>25000,13125-(B15+C15+D15+E15),(F13*0.525)) -> 0 | G15: =SUM(B15:F15) -> 0
A16: ='Y8 New Activities 100k Request'!$A$93 -> 0 | B16: ='Y8 New Activities 100k Request'!$D$93 -> 0 | C16: ='Y8 New Activities 100k Request'!$F$93 -> 0 | D16: ='Y8 New Activities 100k Request'!$H$93 -> 0 | E16: ='Y8 New Activities 100k Request'!$J$93 -> 0 | F16: ='Y8 New Activities 100k Request'!$L$93 -> 0 | G16: 0
A17: Subject to OH | B17: =IF(B16>25000, 25000, B16) -> 0 | C17: =IF(B16+C16>25000, 25000-B17, C16) -> 0 | D17: =IF(B16+C16+D16>25000, 25000-(B17+C17), D16) -> 0 | E17: =IF(B16+C16+D16+E16>25000, 25000-(B17+C17+D17), E16) -> 0 | F17: =IF(B16+C16+D16+E16+F16>25000, 25000-(B17+C17+D17+E17), F16) -> 0 | G17: =SUM(B17:F17) -> 0
A18: OH | B18: =IF(B16>25000,13125,(B16*0.525)) -> 0 | C18: =IF(C16+B16>25000,13125-B18,ROUND(C16*0.525,0)) -> 0 | D18: =IF(D16+C16+B16>25000,13125-(B18+C18),(D16*0.525)) -> 0 | E18: =IF(E16+D16+C16+B16>25000,13125-(B18+C18+D18),(E16*0.525)) -> 0 | F18: =IF(F16+E16+D16+C16+B16>25000,13125-(B18+C18+D18+E18),(F16*0.525)) -> 0 | G18: =SUM(B18:F18) -> 0
A19: ='Y8 New Activities 100k Request'!$A$94 -> 0 | B19: ='Y8 New Activities 100k Request'!$D$94 -> 0 | C19: ='Y8 New Activities 100k Request'!$F$94 -> 0 | D19: ='Y8 New Activities 100k Request'!$H$94 -> 0 | E19: ='Y8 New Activities 100k Request'!$J$94 -> 0 | F19: ='Y8 New Activities 100k Request'!$L$94 -> 0 | G19: =SUM(B19:F19) -> 0
A20: Subject to OH | B20: =IF(B19>25000, 25000, B19) -> 0 | C20: =IF(B19+C19>25000, 25000-B20, C19) -> 0 | D20: =IF(B19+C19+D19>25000, 25000-(B20+C20), D19) -> 0 | E20: =IF(B19+C19+D19+E19>25000, 25000-(B20+C20+D20), E19) -> 0 | F20: =IF(B19+C19+D19+E19+F19>25000, 25000-(B20+C20+D20+E20), F19) -> 0 | G20: =SUM(B20:F20) -> 0
A21: OH | B21: =IF(B19>25000,13125,(B19*0.525)) -> 0 | C21: =IF(C19+B19>25000,13125-B21,ROUND(C19*0.525,0)) -> 0 | D21: =IF(D19+C19+B19>25000,13125-(B21+C21),(D19*0.525)) -> 0 | E21: =IF(E19+D19+C19+B19>25000,13125-(B21+C21+D21),(E19*0.525)) -> 0 | F21: =IF(F19+E19+D19+C19+B19>25000,13125-(B21+C21+D21+E21),(F19*0.525)) -> 0 | G21: =SUM(B21:F21) -> 0
A22: ='Y8 New Activities 100k Request'!$A$95 -> 0 | B22: ='Y8 New Activities 100k Request'!$D$95 -> 0 | C22: ='Y8 New Activities 100k Request'!$F$95 -> 0 | D22: ='Y8 New Activities 100k Request'!$H$95 -> 0 | E22: ='Y8 New Activities 100k Request'!$J$95 -> 0 | F22: ='Y8 New Activities 100k Request'!$L$95 -> 0 | G22: 0
A23: Subject to OH | B23: =IF(B22>25000, 25000, B22) -> 0 | C23: =IF(B22+C22>25000, 25000-B23, C22) -> 0 | D23: =IF(B22+C22+D22>25000, 25000-(B23+C23), D22) -> 0 | E23: =IF(B22+C22+D22+E22>25000, 25000-(B23+C23+D23), E22) -> 0 | F23: =IF(B22+C22+D22+E22+F22>25000, 25000-(B23+C23+D23+E23), F22) -> 0 | G23: =SUM(B23:F23) -> 0
A24: OH | B24: =IF(B22>25000,13125,(B22*0.525)) -> 0 | C24: =IF(C22+B22>25000,13125-B24,ROUND(C22*0.525,0)) -> 0 | D24: =IF(D22+C22+B22>25000,13125-(B24+C24),(D22*0.525)) -> 0 | E24: =IF(E22+D22+C22+B22>25000,13125-(B24+C24+D24),(E22*0.525)) -> 0 | F24: =IF(F22+E22+D22+C22+B22>25000,13125-(B24+C24+D24+E24),(F22*0.525)) -> 0 | G24: =SUM(B24:F24) -> 0
A25: ='Y8 New Activities 100k Request'!$A$96 -> 0 | B25: ='Y8 New Activities 100k Request'!$D$96 -> 0 | C25: ='Y8 New Activities 100k Request'!$F$96 -> 0 | D25: ='Y8 New Activities 100k Request'!$H$96 -> 0 | E25: ='Y8 New Activities 100k Request'!$J$96 -> 0 | F25: ='Y8 New Activities 100k Request'!$L$96 -> 0 | G25: 0
A26: Subject to OH | B26: =IF(B25>25000, 25000, B25) -> 0 | C26: =IF(B25+C25>25000, 25000-B26, C25) -> 0 | D26: =IF(B25+C25+D25>25000, 25000-(B26+C26), D25) -> 0 | E26: =IF(B25+C25+D25+E25>25000, 25000-(B26+C26+D26), E25) -> 0 | F26: =IF(B25+C25+D25+E25+F25>25000, 25000-(B26+C26+D26+E26), F25) -> 0 | G26: =SUM(B26:F26) -> 0
A27: OH | B27: =IF(B25>25000,13125,(B25*0.525)) -> 0 | C27: =IF(C25+B25>25000,13125-B27,ROUND(C25*0.525,0)) -> 0 | D27: =IF(D25+C25+B25>25000,13125-(B27+C27),(D25*0.525)) -> 0 | E27: =IF(E25+D25+C25+B25>25000,13125-(B27+C27+D27),(E25*0.525)) -> 0 | F27: =IF(F25+E25+D25+C25+B25>25000,13125-(B27+C27+D27+E27),(F25*0.525)) -> 0 | G27: =SUM(B27:F27) -> 0
A28: ='Y8 New Activities 100k Request'!$A$97 -> 0 | B28: ='Y8 New Activities 100k Request'!$D$97 -> 0 | C28: ='Y8 New Activities 100k Request'!$F$97 -> 0 | D28: ='Y8 New Activities 100k Request'!$H$97 -> 0 | E28: ='Y8 New Activities 100k Request'!$J$97 -> 0 | F28: ='Y8 New Activities 100k Request'!$L$97 -> 0 | G28: 0
A29: Subject to OH | B29: =IF(B28>25000, 25000, B28) -> 0 | C29: =IF(B28+C28>25000, 25000-B29, C28) -> 0 | D29: =IF(B28+C28+D28>25000, 25000-(B29+C29), D28) -> 0 | E29: =IF(B28+C28+D28+E28>25000, 25000-(B29+C29+D29), E28) -> 0 | F29: =IF(B28+C28+D28+E28+F28>25000, 25000-(B29+C29+D29+E29), F28) -> 0 | G29: =SUM(B29:F29) -> 0
A30: OH | B30: =IF(B28>25000,13125,(B28*0.525)) -> 0 | C30: =IF(C28+B28>25000,13125-B30,ROUND(C28*0.525,0)) -> 0 | D30: =IF(D28+C28+B28>25000,13125-(B30+C30),(D28*0.525)) -> 0 | E30: =IF(E28+D28+C28+B28>25000,13125-(B30+C30+D30),(E28*0.525)) -> 0 | F30: =IF(F28+E28+D28+C28+B28>25000,13125-(B30+C30+D30+E30),(F28*0.525)) -> 0 | G30: =SUM(B30:F30) -> 0
A31: ='Y8 New Activities 100k Request'!$A$98 -> 0 | B31: ='Y8 New Activities 100k Request'!$D$98 -> 0 | C31: ='Y8 New Activities 100k Request'!$F$98 -> 0 | D31: ='Y8 New Activities 100k Request'!$H$98 -> 0 | E31: ='Y8 New Activities 100k Request'!$J$98 -> 0 | F31: ='Y8 New Activities 100k Request'!$L$98 -> 0 | G31: 0
A32: Subject to OH | B32: =IF(B31>25000, 25000, B31) -> 0 | C32: =IF(B31+C31>25000, 25000-B32, C31) -> 0 | D32: =IF(B31+C31+D31>25000, 25000-(B32+C32), D31) -> 0 | E32: =IF(B31+C31+D31+E31>25000, 25000-(B32+C32+D32), E31) -> 0 | F32: =IF(B31+C31+D31+E31+F31>25000, 25000-(B32+C32+D32+E32), F31) -> 0 | G32: =SUM(B32:F32) -> 0
A33: OH | B33: =IF(B31>25000,13125,(B31*0.525)) -> 0 | C33: =IF(C31+B31>25000,13125-B33,ROUND(C31*0.525,0)) -> 0 | D33: =IF(D31+C31+B31>25000,13125-(B33+C33),(D31*0.525)) -> 0 | E33: =IF(E31+D31+C31+B31>25000,13125-(B33+C33+D33),(E31*0.525)) -> 0 | F33: =IF(F31+E31+D31+C31+B31>25000,13125-(B33+C33+D33+E33),(F31*0.525)) -> 0 | G33: =SUM(B33:F33) -> 0
A34: ='Y8 New Activities 100k Request'!$A$99 -> 0 | B34: ='Y8 New Activities 100k Request'!$D$99 -> 0 | C34: ='Y8 New Activities 100k Request'!$F$99 -> 0 | D34: ='Y8 New Activities 100k Request'!$H$99 -> 0 | E34: ='Y8 New Activities 100k Request'!$J$99 -> 0 | F34: ='Y8 New Activities 100k Request'!$L$99 -> 0 | G34: 0
A35: Subject to OH | B35: =IF(B34>25000, 25000, B34) -> 0 | C35: =IF(B34+C34>25000, 25000-B35, C34) -> 0 | D35: =IF(B34+C34+D34>25000, 25000-(B35+C35), D34) -> 0 | E35: =IF(B34+C34+D34+E34>25000, 25000-(B35+C35+D35), E34) -> 0 | F35: =IF(B34+C34+D34+E34+F34>25000, 25000-(B35+C35+D35+E35), F34) -> 0 | G35: =SUM(B35:F35) -> 0
A36: OH | B36: =IF(B34>25000,13125,(B34*0.525)) -> 0 | C36: =IF(C34+B34>25000,13125-B36,ROUND(C34*0.525,0)) -> 0 | D36: =IF(D34+C34+B34>25000,13125-(B36+C36),(D34*0.525)) -> 0 | E36: =IF(E34+D34+C34+B34>25000,13125-(B36+C36+D36),(E34*0.525)) -> 0 | F36: =IF(F34+E34+D34+C34+B34>25000,13125-(B36+C36+D36+E36),(F34*0.525)) -> 0 | G36: =SUM(B36:F36) -> 0
A37: ='Y8 New Activities 100k Request'!$A$100 -> 0 | B37: ='Y8 New Activities 100k Request'!$D$100 -> 0 | C37: ='Y8 New Activities 100k Request'!$F$100 -> 0 | D37: ='Y8 New Activities 100k Request'!$H$100 -> 0 | E37: ='Y8 New Activities 100k Request'!$J$100 -> 0 | F37: ='Y8 New Activities 100k Request'!$L$100 -> 0 | G37: 0
A38: Subject to OH | B38: =IF(B37>25000, 25000, B37) -> 0 | C38: =IF(B37+C37>25000, 25000-B38, C37) -> 0 | D38: =IF(B37+C37+D37>25000, 25000-(B38+C38), D37) -> 0 | E38: =IF(B37+C37+D37+E37>25000, 25000-(B38+C38+D38), E37) -> 0 | F38: =IF(B37+C37+D37+E37+F37>25000, 25000-(B38+C38+D38+E38), F37) -> 0 | G38: =SUM(B38:F38) -> 0
A39: OH | B39: =IF(B37>25000,13125,(B37*0.525)) -> 0 | C39: =IF(C37+B37>25000,13125-B39,ROUND(C37*0.525,0)) -> 0 | D39: =IF(D37+C37+B37>25000,13125-(B39+C39),(D37*0.525)) -> 0 | E39: =IF(E37+D37+C37+B37>25000,13125-(B39+C39+D39),(E37*0.525)) -> 0 | F39: =IF(F37+E37+D37+C37+B37>25000,13125-(B39+C39+D39+E39),(F37*0.525)) -> 0 | G39: =SUM(B39:F39) -> 0
A40: ='Y8 New Activities 100k Request'!$A$101 -> 0 | B40: ='Y8 New Activities 100k Request'!$D$101 -> 0 | C40: ='Y8 New Activities 100k Request'!$F$101 -> 0 | D40: ='Y8 New Activities 100k Request'!$H$101 -> 0 | E40: ='Y8 New Activities 100k Request'!$J$101 -> 0 | F40: ='Y8 New Activities 100k Request'!$L$101 -> 0 | G40: =SUM(B40:F40) -> 0
A41: Subject to OH | B41: =IF(B40>25000, 25000, B40) -> 0 | C41: =IF(B40+C40>25000, 25000-B41, C40) -> 0 | D41: =IF(B40+C40+D40>25000, 25000-(B41+C41), D40) -> 0 | E41: =IF(B40+C40+D40+E40>25000, 25000-(B41+C41+D41), E40) -> 0 | F41: =IF(B40+C40+D40+E40+F40>25000, 25000-(B41+C41+D41+E41), F40) -> 0 | G41: =SUM(B41:F41) -> 0
A42: OH | B42: =IF(B40>25000,13125,(B40*0.525)) -> 0 | C42: =IF(C40+B40>25000,13125-B42,ROUND(C40*0.525,0)) -> 0 | D42: =IF(D40+C40+B40>25000,13125-(B42+C42),(D40*0.525)) -> 0 | E42: =IF(E40+D40+C40+B40>25000,13125-(B42+C42+D42),(E40*0.525)) -> 0 | F42: =IF(F40+E40+D40+C40+B40>25000,13125-(B42+C42+D42+E42),(F40*0.525)) -> 0 | G42: 0
A43: ='Y8 New Activities 100k Request'!$A$102 -> 0 | B43: ='Y8 New Activities 100k Request'!$D$102 -> 0 | C43: ='Y8 New Activities 100k Request'!$F$102 -> 0 | D43: ='Y8 New Activities 100k Request'!$H$102 -> 0 | E43: ='Y8 New Activities 100k Request'!$J$102 -> 0 | F43: ='Y8 New Activities 100k Request'!$L$102 -> 0 | G43: 0
A44: Subject to OH | B44: =IF(B43>25000, 25000, B43) -> 0 | C44: =IF(B43+C43>25000, 25000-B44, C43) -> 0 | D44: =IF(B43+C43+D43>25000, 25000-(B44+C44), D43) -> 0 | E44: =IF(B43+C43+D43+E43>25000, 25000-(B44+C44+D44), E43) -> 0 | F44: =IF(B43+C43+D43+E43+F43>25000, 25000-(B44+C44+D44+E44), F43) -> 0 | G44: =SUM(B44:F44) -> 0
A45: OH | B45: =IF(B43>25000,13125,(B43*0.525)) -> 0 | C45: =IF(C43+B43>25000,13125-B45,ROUND(C43*0.525,0)) -> 0 | D45: =IF(D43+C43+B43>25000,13125-(B45+C45),(D43*0.525)) -> 0 | E45: =IF(E43+D43+C43+B43>25000,13125-(B45+C45+D45),(E43*0.525)) -> 0 | F45: =IF(F43+E43+D43+C43+B43>25000,13125-(B45+C45+D45+E45),(F43*0.525)) -> 0 | G45: 0
A46: ='Y8 New Activities 100k Request'!$A$103 -> 0 | B46: ='Y8 New Activities 100k Request'!$D$103 -> 0 | C46: ='Y8 New Activities 100k Request'!$F$103 -> 0 | D46: ='Y8 New Activities 100k Request'!$H$103 -> 0 | E46: ='Y8 New Activities 100k Request'!$J$103 -> 0 | F46: ='Y8 New Activities 100k Request'!$L$103 -> 0 | G46: 0
A47: Subject to OH | B47: =IF(B46>25000, 25000, B46) -> 0 | C47: =IF(B46+C46>25000, 25000-B47, C46) -> 0 | D47: =IF(B46+C46+D46>25000, 25000-(B47+C47), D46) -> 0 | E47: =IF(B46+C46+D46+E46>25000, 25000-(B47+C47+D47), E46) -> 0 | F47: =IF(B46+C46+D46+E46+F46>25000, 25000-(B47+C47+D47+E47), F46) -> 0 | G47: =SUM(B47:F47) -> 0
A48: OH | B48: =IF(B46>25000,13125,(B46*0.525)) -> 0 | C48: =IF(C46+B46>25000,13125-B48,ROUND(C46*0.525,0)) -> 0 | D48: =IF(D46+C46+B46>25000,13125-(B48+C48),(D46*0.525)) -> 0 | E48: =IF(E46+D46+C46+B46>25000,13125-(B48+C48+D48),(E46*0.525)) -> 0 | F48: =IF(F46+E46+D46+C46+B46>25000,13125-(B48+C48+D48+E48),(F46*0.525)) -> 0 | G48: 0
A49: ='Y8 New Activities 100k Request'!$A$104 -> 0 | B49: ='Y8 New Activities 100k Request'!$D$104 -> 0 | C49: ='Y8 New Activities 100k Request'!$F$104 -> 0 | D49: ='Y8 New Activities 100k Request'!$H$104 -> 0 | E49: ='Y8 New Activities 100k Request'!$J$104 -> 0 | F49: ='Y8 New Activities 100k Request'!$L$104 -> 0 | G49: =SUM(B49:F49) -> 0
A50: Subject to OH | B50: =IF(B49>25000, 25000, B49) -> 0 | C50: =IF(B49+C49>25000, 25000-B50, C49) -> 0 | D50: =IF(B49+C49+D49>25000, 25000-(B50+C50), D49) -> 0 | E50: =IF(B49+C49+D49+E49>25000, 25000-(B50+C50+D50), E49) -> 0 | F50: =IF(B49+C49+D49+E49+F49>25000, 25000-(B50+C50+D50+E50), F49) -> 0 | G50: =SUM(B50:F50) -> 0
A51: OH | B51: =IF(B49>25000,13125,(B49*0.525)) -> 0 | C51: =IF(C49+B49>25000,13125-B51,ROUND(C49*0.525,0)) -> 0 | D51: =IF(D49+C49+B49>25000,13125-(B51+C51),(D49*0.525)) -> 0 | E51: =IF(E49+D49+C49+B49>25000,13125-(B51+C51+D51),(E49*0.525)) -> 0 | F51: =IF(F49+E49+D49+C49+B49>25000,13125-(B51+C51+D51+E51),(F49*0.525)) -> 0 | G51: 0
A52: ='Y8 New Activities 100k Request'!$A$105 -> 0 | B52: ='Y8 New Activities 100k Request'!$D$105 -> 0 | C52: ='Y8 New Activities 100k Request'!$F$105 -> 0 | D52: ='Y8 New Activities 100k Request'!$H$105 -> 0 | E52: ='Y8 New Activities 100k Request'!$J$105 -> 0 | F52: ='Y8 New Activities 100k Request'!$L$105 -> 0 | G52: 0
A53: Subject to OH | B53: =IF(B52>25000, 25000, B52) -> 0 | C53: =IF(B52+C52>25000, 25000-B53, C52) -> 0 | D53: =IF(B52+C52+D52>25000, 25000-(B53+C53), D52) -> 0 | E53: =IF(B52+C52+D52+E52>25000, 25000-(B53+C53+D53), E52) -> 0 | F53: =IF(B52+C52+D52+E52+F52>25000, 25000-(B53+C53+D53+E53), F52) -> 0 | G53: =SUM(B53:F53) -> 0
A54: OH | B54: =IF(B52>25000,13125,(B52*0.525)) -> 0 | C54: =IF(C52+B52>25000,13125-B54,ROUND(C52*0.525,0)) -> 0 | D54: =IF(D52+C52+B52>25000,13125-(B54+C54),(D52*0.525)) -> 0 | E54: =IF(E52+D52+C52+B52>25000,13125-(B54+C54+D54),(E52*0.525)) -> 0 | F54: =IF(F52+E52+D52+C52+B52>25000,13125-(B54+C54+D54+E54),(F52*0.525)) -> 0 | G54: 0
A55: ='Y8 New Activities 100k Request'!$A$106 -> 0 | B55: ='Y8 New Activities 100k Request'!$D$106 -> 0 | C55: ='Y8 New Activities 100k Request'!$F$106 -> 0 | D55: ='Y8 New Activities 100k Request'!$H$106 -> 0 | E55: ='Y8 New Activities 100k Request'!$J$106 -> 0 | F55: ='Y8 New Activities 100k Request'!$L$106 -> 0 | G55: 0
A56: Subject to OH | B56: =IF(B55>25000, 25000, B55) -> 0 | C56: =IF(B55+C55>25000, 25000-B56, C55) -> 0 | D56: =IF(B55+C55+D55>25000, 25000-(B56+C56), D55) -> 0 | E56: =IF(B55+C55+D55+E55>25000, 25000-(B56+C56+D56), E55) -> 0 | F56: =IF(B55+C55+D55+E55+F55>25000, 25000-(B56+C56+D56+E56), F55) -> 0 | G56: =SUM(B56:F56) -> 0
A57: OH | B57: =IF(B55>25000,13125,(B55*0.525)) -> 0 | C57: =IF(C55+B55>25000,13125-B57,ROUND(C55*0.525,0)) -> 0 | D57: =IF(D55+C55+B55>25000,13125-(B57+C57),(D55*0.525)) -> 0 | E57: =IF(E55+D55+C55+B55>25000,13125-(B57+C57+D57),(E55*0.525)) -> 0 | F57: =IF(F55+E55+D55+C55+B55>25000,13125-(B57+C57+D57+E57),(F55*0.525)) -> 0 | G57: 0
A58: ='Y8 New Activities 100k Request'!$A$107 -> 0 | B58: ='Y8 New Activities 100k Request'!$D$107 -> 0 | C58: ='Y8 New Activities 100k Request'!$F$107 -> 0 | D58: ='Y8 New Activities 100k Request'!$H$107 -> 0 | E58: ='Y8 New Activities 100k Request'!$J$107 -> 0 | F58: ='Y8 New Activities 100k Request'!$L$107 -> 0 | G58: 0
A59: Subject to OH | B59: =IF(B58>25000, 25000, B58) -> 0 | C59: =IF(B58+C58>25000, 25000-B59, C58) -> 0 | D59: =IF(B58+C58+D58>25000, 25000-(B59+C59), D58) -> 0 | E59: =IF(B58+C58+D58+E58>25000, 25000-(B59+C59+D59), E58) -> 0 | F59: =IF(B58+C58+D58+E58+F58>25000, 25000-(B59+C59+D59+E59), F58) -> 0 | G59: =SUM(B59:F59) -> 0
A60: OH | B60: =IF(B58>25000,13125,(B58*0.525)) -> 0 | C60: =IF(C58+B58>25000,13125-B60,ROUND(C58*0.525,0)) -> 0 | D60: =IF(D58+C58+B58>25000,13125-(B60+C60),(D58*0.525)) -> 0 | E60: =IF(E58+D58+C58+B58>25000,13125-(B60+C60+D60),(E58*0.525)) -> 0 | F60: =IF(F58+E58+D58+C58+B58>25000,13125-(B60+C60+D60+E60),(F58*0.525)) -> 0 | G60: 0
A61: ='Y8 New Activities 100k Request'!$A$108 -> 0 | B61: ='Y8 New Activities 100k Request'!$D$108 -> 0 | C61: ='Y8 New Activities 100k Request'!$F$108 -> 0 | D61: ='Y8 New Activities 100k Request'!$H$108 -> 0 | E61: ='Y8 New Activities 100k Request'!$J$108 -> 0 | F61: ='Y8 New Activities 100k Request'!$L$108 -> 0 | G61: 0
A62: Subject to OH | B62: =IF(B61>25000, 25000, B61) -> 0 | C62: =IF(B61+C61>25000, 25000-B62, C61) -> 0 | D62: =IF(B61+C61+D61>25000, 25000-(B62+C62), D61) -> 0 | E62: =IF(B61+C61+D61+E61>25000, 25000-(B62+C62+D62), E61) -> 0 | F62: =IF(B61+C61+D61+E61+F61>25000, 25000-(B62+C62+D62+E62), F61) -> 0 | G62: =SUM(B62:F62) -> 0
A63: OH | B63: =IF(B61>25000,13125,(B61*0.525)) -> 0 | C63: =IF(C61+B61>25000,13125-B63,ROUND(C61*0.525,0)) -> 0 | D63: =IF(D61+C61+B61>25000,13125-(B63+C63),(D61*0.525)) -> 0 | E63: =IF(E61+D61+C61+B61>25000,13125-(B63+C63+D63),(E61*0.525)) -> 0 | F63: =IF(F61+E61+D61+C61+B61>25000,13125-(B63+C63+D63+E63),(F61*0.525)) -> 0 | G63: 0
A64: ='Y8 New Activities 100k Request'!$A$109 -> 0 | B64: ='Y8 New Activities 100k Request'!$D$109 -> 0 | C64: ='Y8 New Activities 100k Request'!$F$109 -> 0 | D64: ='Y8 New Activities 100k Request'!$H$109 -> 0 | E64: ='Y8 New Activities 100k Request'!$J$109 -> 0 | F64: ='Y8 New Activities 100k Request'!$L$109 -> 0 | G64: 0
A65: Subject to OH | B65: =IF(B64>25000, 25000, B64) -> 0 | C65: =IF(B64+C64>25000, 25000-B65, C64) -> 0 | D65: =IF(B64+C64+D64>25000, 25000-(B65+C65), D64) -> 0 | E65: =IF(B64+C64+D64+E64>25000, 25000-(B65+C65+D65), E64) -> 0 | F65: =IF(B64+C64+D64+E64+F64>25000, 25000-(B65+C65+D65+E65), F64) -> 0 | G65: =SUM(B65:F65) -> 0
A66: OH | B66: =IF(B64>25000,13125,(B64*0.525)) -> 0 | C66: =IF(C64+B64>25000,13125-B66,ROUND(C64*0.525,0)) -> 0 | D66: =IF(D64+C64+B64>25000,13125-(B66+C66),(D64*0.525)) -> 0 | E66: =IF(E64+D64+C64+B64>25000,13125-(B66+C66+D66),(E64*0.525)) -> 0 | F66: =IF(F64+E64+D64+C64+B64>25000,13125-(B66+C66+D66+E66),(F64*0.525)) -> 0 | G66: 0
A67: ='Y8 New Activities 100k Request'!$A$110 -> 0 | B67: ='Y8 New Activities 100k Request'!$D$110 -> 0 | C67: ='Y8 New Activities 100k Request'!$F$110 -> 0 | D67: ='Y8 New Activities 100k Request'!$H$110 -> 0 | E67: ='Y8 New Activities 100k Request'!$J$110 -> 0 | F67: ='Y8 New Activities 100k Request'!$L$110 -> 0 | G67: 0
A68: Subject to OH | B68: =IF(B67>25000, 25000, B67) -> 0 | C68: =IF(B67+C67>25000, 25000-B68, C67) -> 0 | D68: =IF(B67+C67+D67>25000, 25000-(B68+C68), D67) -> 0 | E68: =IF(B67+C67+D67+E67>25000, 25000-(B68+C68+D68), E67) -> 0 | F68: =IF(B67+C67+D67+E67+F67>25000, 25000-(B68+C68+D68+E68), F67) -> 0 | G68: =SUM(B68:F68) -> 0
A69: OH | B69: =IF(B67>25000,13125,(B67*0.525)) -> 0 | C69: =IF(C67+B67>25000,13125-B69,ROUND(C67*0.525,0)) -> 0 | D69: =IF(D67+C67+B67>25000,13125-(B69+C69),(D67*0.525)) -> 0 | E69: =IF(E67+D67+C67+B67>25000,13125-(B69+C69+D69),(E67*0.525)) -> 0 | F69: =IF(F67+E67+D67+C67+B67>25000,13125-(B69+C69+D69+E69),(F67*0.525)) -> 0 | G69: 0
A70: Total Subawards | B70: =SUM(B67,B64, B61, B58,B55,B52,B49,B46,B43,B40,B37,B34,B31,B28,B25,B22,B19,B16,B13,B10,B7,B4) -> 0 | C70: =SUM(C67,C64, C61, C58,C55,C52,C49,C46,C43,C40,C37,C34,C31,C28,C25,C22,C19,C16,C13,C10,C7,C4) -> 0 | D70: =SUM(D67,D64, D61, D58,D55,D52,D49,D46,D43,D40,D37,D34,D31,D28,D25,D22,D19,D16,D13,D10,D7,D4) -> 0 | E70: =SUM(E67,E64, E61, E58,E55,E52,E49,E46,E43,E40,E37,E34,E31,E28,E25,E22,E19,E16,E13,E10,E7,E4) -> 0 | F70: =SUM(F67,F64, F61, F58,F55,F52,F49,F46,F43,F40,F37,F34,F31,F28,F25,F22,F19,F16,F13,F10,F7,F4) -> 0 | G70: =SUM(B70:F70) -> 0
A71: Total Subject to OH | B71: =SUM(B68,B65,B62,B59,B56,B53,B50,B47,B44,B41,B38,B35,B32,B29,B26,B23,B20,B17,B14,B11,B8,B5) -> 0 | C71: 0 | D71: 0 | E71: 0 | F71: 0 | G71: =SUM(B71:F71) -> 0
A72: Total Overhead | B72: 0 | C72: 0 | D72: 0 | E72: 0 | F72: 0 | G72: =SUM(G69,G66,G63,G60,G57,G54,G51,G48,G45,G42,G39,G36,G33,G30,G27,G24,G21,G18,G15,G12,G9,G6) -> 0
A74: pw: edit

Sheet Projected Ship Rates
A1: Asset | B1: 2020 | C1: 2021 | D1: 2022 | E1: 2023 | F1: 2024 | G1: 2025 | H1: 2026
A2: Rachel Carson | B2: 13385 | C2: 11500 | D2: 11900 | E2: 12300 | F2: 12700 | G2: 13100
A3: Rachel Carson 12 | B3: 14660 | C3: 12500 | D3: 12900 | E3: 13400 | F3: 13800 | G3: 14200
A4: Ventana | B4: 6400 | C4: 5000 | D4: 5200 | E4: 5400 | F4: 5600 | G4: 5800
A5: Western Flyer with Ricketts | B5: 33000 | C5: 33990 | D5: 35009.7 | E5: N/A | F5: N/A | G5: N/A
A6: AUV | B6: 12745 | C6: 13100 | D6: 13500 | E6: 13900 | F6: 14300 | G6: 14775
A7: Paragon | B7: 500 | C7: 515 | D7: 530 | E7: 545 | F7: 560 | G7: 580
A12: Carson w Ventana | B12: =B3+B4 -> 21060 | C12: 17500 | D12: 18100 | E12: 18800 | F12: 19400 | G12: 20000
